Workbook

Sheet Общая информация
A1: Наименование организации: | E1: Муниципальное бюджетное общеобразовательное учреждение средняя общеобразовательная школа № 1 муниципального образования Тимашевский район
A4: СГОЗ (общий) | C4: 11162598.69 | E4: п.4 (10% от СГОЗ или 2 000 000) | H4: 2000000 | L4: п.5 (50% СГОЗ) | M4: =C4-H4 -> 9162598.69
A5: СГОЗ (остаток) | C5: =C4-G15+J15 -> -3664441.62 | E5: п.4 (остаток) | H5: =H4-G12 -> -101486.89 | L5: п.5 (остаток) | M5: =M4-G13 -> 1783827.8
A8: Способ определения поставщика (подрядчика, исполнителя) | D8: Начальная (максимальная) цена контракта | G8: Фактическая цена контракта | J8: Расторжение контракта по соглашению сторон | M8: Экономия
A9: Состоявшиеся аукционы | D9: ='Состоявшиеся аукционы'!G2 -> 2009834.73 | G9: ='Состоявшиеся аукционы'!Q2 -> 1799547.99 | J9: ='Состоявшиеся аукционы'!AB2 -> 0 | M9: =D9-G9 -> 210286.74
A10: Несостоявшиеся аукционы | D10: ='Несостоявшиеся аукционы'!G2 -> 0 | G10: ='Несостоявшиеся аукционы'!Q2 -> 0 | J10: ='Несостоявшиеся аукционы'!AB2 -> 0 | M10: 0
A11: Иные конкурентные закупки | D11: ='Иные конкурентные закупки'!G2 -> 0 | G11: ='Иные конкурентные закупки'!Q2 -> 0 | J11: ='Иные конкурентные закупки'!AB2 -> 0 | M11: 0
A12: Ед. поставщик п.4 ч.1 | D12: ='Ед. поставщик п.4 ч.1'!H2 -> 2101486.89 | G12: =D12 -> 2101486.89 | J12: ='Ед. поставщик п.4 ч.1'!V2 -> 32853.52 | M12: 0
A13: Ед. поставщик п. 5 ч. 1 | D13: ='Ед. поставщик п.5 ч.1'!H2 -> 7378770.89 | G13: =D13 -> 7378770.89 | J13: ='Ед. поставщик п.5 ч.1'!V2 -> 282983.67 | M13: 0
A14: Ед.поставщик за искл. п.4,5 ч.1 | D14: ='Ед.поставщик за искл. п.4,5 ч.1'!G2 -> 4022529.06 | G14: =D14 -> 4022529.06 | J14: ='Ед.поставщик за искл. п.4,5 ч.1'!T2 -> 159457.33 | M14: 0
A15: Всего | D15: =SUM(D9:D14) -> 15512621.57 | G15: =SUM(G9:G14) -> 15302334.83 | J15: =SUM(J9:J14) -> 475294.52 | M15: 210286.74
A19: Всего средств потрачено по заключенным контрактам | D19: ='Ед. поставщик п.4 ч.1'!P2+'Ед. поставщик п.5 ч.1'!P2+'Ед.поставщик за искл. п.4,5 ч.1'!N2+'Состоявшиеся аукционы'!V2+'Несостоявшиеся аукционы'!V2+'Иные конкурентные закупки'!V2 -> 13943984.75

Sheet Ед. поставщик п.4 ч.1
G2: Сумма заключенных контрактов | H2: =SUM(H9:H9999) -> 2101486.89 | N2: Сумма средств выплаченных по контрактам | P2: =SUM(P9:P9999) -> 2067233.37 | S2: Общая сумма расторжений по контрактам/договорам | V2: =SUM(V9:V9999) -> 32853.52
A6: № п/п | B6: Наименование муниципальной программы, национального или регионального проекта | C6: Контракт заключен в электронном виде посредством АИС "Портал поставщиков" (Да/Нет) | D6: Код бюджетной классификации | E6: № договора/контракта | F6: Дата заключения договора/контракта | G6: Предмет договора/контракта | H6: Цена договора/контракта | I6: Остаток по контракту | J6: ИНН поставщика (подрядчика, исполнителя) | K6: Поставщик (подрядчик, исполнитель) | L6: СМП и СОНО (да/нет) | M6: Сроки поставки товара (оказания услуги, выполнения работы), согласно договора/контракта; Предоставление документов на оплату Заказчику | N6: Фактическая дата поставки товара (оказания услуги, выполнения работы) | O6: Сроки оплаты согласно договора/контракта | P6: Сумма согласно документа об исполнении контракта заказчиком | Q6: Фактическая дата оплаты | R6: Изменение контракта (№, дата) | S6: Изменение контракта (увеличение цены контракта в рублях) | T6: Изменение контракта (уменьшение цены контракта в рублях) | U6: Расторжение контракта (№, дата) | V6: Сумма расторжения в рублях | W6: Примечание
A7: 1 | B7: 2 | C7: 3 | D7: 4 | E7: 5 | F7: 6 | G7: 7 | H7: 8 | I7: 9 | J7: 10 | K7: 11 | L7: 12 | M7: 13 | N7: 14 | O7: 15 | P7: 16 | Q7: 17 | R7: 18 | S7: 19 | T7: 20 | U7: 21 | V7: 22 | W7: 23
A8: 1 | B8: Муниципальная программа "Развитие образования" | D8: 902 0113 1310110490 244 | E8: № 1 | F8: 09.01.2020 | G8: Поставка бумаги для офисной техники | H8: 20000 | I8: =H8-P8 -> 0 | J8: 2353019514 | K8: ИП Котляров К.И. | M8: В течение 15 рабочих дней, со дня подписания сторонами контракта | N8: 2020-01-10 | O8: Не позднее 30 календарных дней с момента подписания акта приема-сдачи и документа на оплату | P8: 20000 | Q8: 2020-01-10 | W8: Пример
A9: 1 | D9: 92500000000000000244 | E9: 29 | F9: 2020-12-25 | G9: тенич.обслуж.автоматически установок пожарной сигнализации | H9: 24000 | I9: =IF(X9 = 1, H9 + SUM(S9:S20) - SUM(T9:T20) - SUM(P9:P20) - V9,0) -> 0 | K9: ООО СИГНАЛ | M9: В течение 30 дней, со дня подписания сторонами контракта | N9: 2021-01-21 | O9: Не позднее 30 календарных дней с момента подписания акта приема-сдачи и документа на оплату | P9: 2000 | Q9: 2021-02-05 | X9: 1
N10: 2021-02-24 | P10: 2000 | Q10: 2021-02-24 | X10: 1
N11: 2021-04-21 | P11: 2000 | Q11: 2021-06-18 | X11: 1
N12: 2021-03-22 | P12: 2000 | Q12: 2021-06-18 | X12: 1
N13: 2021-05-21 | P13: 2000 | Q13: 2021-06-18 | X13: 1
N14: 2021-06-21 | P14: 2000 | Q14: 2021-07-08 | X14: 1
N15: 2021-07-31 | P15: 2000 | Q15: 2021-08-04 | X15: 1
N16: 2021-08-31 | P16: 2000 | Q16: 2021-09-01 | X16: 1
N17: 2021-09-30 | P17: 2000 | Q17: 2021-10-22 | X17: 1
N18: 2021-10-31 | P18: 2000 | Q18: 2021-11-09 | X18: 1
N19: 2021-11-30 | P19: 2000 | Q19: 2021-12-01 | X19: 1
N20: 2021-12-20 | P20: 2000 | Q20: 2021-12-20 | X20: 1
A21: 2 | D21: 92500000000000000244 | E21: 34-С | F21: 2020-12-25 | G21: Техническое обслуживание объектов систе пожарного мониторинга ПАК Стрелец-мониторинг | H21: 36000 | I21: =IF(X21 = 2, H21 + SUM(S21:S33) - SUM(T21:T33) - SUM(P21:P33) - V21,0) -> 0 | K21: ООО Сигнал | M21: В течение 30 дней, со дня подписания сторонами контракта | N21: 2021-01-21 | O21: Не позднее 30 календарных дней с момента подписания акта приема-сдачи и документа на оплату | P21: 3000 | Q21: 2021-02-05 | X21: 2
N22: 2021-02-24 | P22: 3000 | Q22: 2021-02-24 | X22: 2
N23: 2021-03-22 | P23: 3000 | Q23: 2021-06-18 | X23: 2
N24: 2021-04-21 | P24: 3000 | Q24: 2021-06-18 | X24: 2
N25: 2021-05-21 | P25: 3000 | Q25: 2021-06-18 | X25: 2
N26: 2021-06-21 | P26: 3000 | Q26: 2021-07-08 | X26: 2
N27: 2021-07-31 | P27: 3000 | Q27: 2021-08-04 | X27: 2
N28: 2021-08-31 | P28: 3000 | Q28: 2021-09-01 | X28: 2
N29: 2021-09-30 | P29: 3000 | Q29: 2021-10-09 | X29: 2
N30: 2021-10-31 | P30: 3000 | Q30: 2021-11-09 | X30: 2
N31: 2021-11-30 | P31: 3000 | Q31: 2021-12-01 | X31: 2
N32: 2021-12-20 | P32: 3000 | Q32: 2021-12-20 | X32: 2
X33: 2
A34: 3 | D34: 92500000000000000244 | E34: 1/20 | F34: 2020-12-25 | G34: дератизация | H34: 23327.88 | I34: =IF(X34 = 3, H34 + SUM(S34:S38) - SUM(T34:T38) - SUM(P34:P38) - V34,0) -> 0 | K34: ООО Дезинфекция | M34: В течение 30 дней, со дня подписания сторонами контракта | N34: 2021-03-31 | O34: Не позднее 30 календарных дней с момента подписания акта приема-сдачи и документа на оплату | P34: 5831.97 | Q34: 2021-04-10 | X34: 3
N35: 2021-06-30 | P35: 5831.97 | Q35: 2021-07-22 | X35: 3
N36: 2021-09-20 | P36: 5831.97 | Q36: 2021-09-29 | X36: 3
N37: 2021-12-15 | P37: 5831.97 | Q37: 2021-12-21 | X37: 3
X38: 3
A39: 4 | D39: 92500000000000000244 | E39: 34000654 | F39: 2021-01-25 | G39: охрана объекта с использованием КТС | H39: 27288.84 | I39: =IF(X39 = 5, H39 + SUM(S39:S51) - SUM(T39:T51) - SUM(P39:P51) - V39,0) -> 0 | K39: Федеральное госуд.казеное учреждение "Управление вневед.охраны войск нац.гвардии РФ по Краснодарскому краю (ФГКУ "УВО ВНГ России по Краснодарскому раю" | M39: В течение 30 дней, со дня подписания сторонами контракта | N39: 2021-02-16 | O39: Не позднее 30 календарных дней с момента подписания акта приема-сдачи и документа на оплату | P39: 2274.07 | Q39: 2021-02-16 | X39: 5
N40: 2021-02-09 | P40: 2274.07 | Q40: 2021-02-15 | X40: 5
N41: 2021-03-16 | P41: 2274.07 | Q41: 2021-03-16 | X41: 5
N42: 2021-04-15 | P42: 2274.07 | Q42: 2021-06-18 | X42: 5
N43: 2021-05-14 | P43: 2274.07 | Q43: 2021-06-18 | X43: 5
N44: 2021-06-30 | P44: 2274.07 | Q44: 2021-07-22 | X44: 5
N45: 2021-07-31 | P45: 2274.07 | Q45: 2021-08-03 | X45: 5
N46: 2021-08-31 | P46: 2274.07 | Q46: 2021-09-01 | X46: 5
N47: 2021-09-30 | P47: 2274.07 | Q47: 2021-10-25 | X47: 5
N48: 2021-10-29 | P48: 2274.07 | Q48: 2021-11-09 | X48: 5
N49: 2021-11-30 | P49: 2274.07 | Q49: 2021-12-01 | X49: 5
N50: 2021-12-23 | P50: 2274.07 | Q50: 2021-12-23 | X50: 5
X51: 5
A52: 5 | D52: 92500000000000000244 | E52: 1 | F52: 2021-01-25 | G52: хох нужды | H52: 21998 | I52: =IF(X52 = 6, H52 + SUM(S52:S52) - SUM(T52:T52) - SUM(P52:P52) - V52,0) -> 0 | K52: ИП Латышева | M52: В течение 30 дней, со дня подписания сторонами контракта | N52: 2021-01-25 | O52: Не позднее 30 календарных дней с момента подписания акта приема-сдачи и документа на оплату | P52: 21998 | Q52: 2021-02-10 | X52: 6
A53: 6 | D53: 92500000000000000244 | E53: 3-50-21-0393 | F53: 2021-02-11 | G53: Увеличение мощности | H53: 113526.37 | I53: =IF(X53 = 7, H53 + SUM(S53:S53) - SUM(T53:T53) - SUM(P53:P53) - V53,0) -> 0 | K53: АО "НЭСК-элекросети" | M53: В течение 30 дней, со дня подписания сторонами контракта | N53: 2021-02-11 | O53: Не позднее 30 календарных дней с момента подписания акта приема-сдачи и документа на оплату | P53: 113526.37 | Q53: 2021-02-15 | X53: 7
A54: 7 | D54: 92500000000000000244 | E54: 23050354/21 | F54: 2021-02-20 | G54: Право использование программы ЭВМ "Контур экстерн" | H54: 5000 | I54: =IF(X54 = 8, H54 + SUM(S54:S54) - SUM(T54:T54) - SUM(P54:P54) - V54,0) -> 0 | K54: АО "Производственная фирма "СКБ Контур" | M54: В течение 30 дней, со дня подписания сторонами контракта | N54: 2021-02-20 | O54: Не позднее 30 календарных дней с момента подписания Заказчиком и Подрядчиком акта приема-сдачи и предоставленного Подрядчиком документа на оплату | P54: 5000 | Q54: 2021-03-03 | X54: 8
A55: 8 | D55: 92500000000000000244 | E55: 23-7341 | F55: 2021-02-25 | G55: аттестаты | H55: 36136.5 | I55: =IF(X55 = 9, H55 + SUM(S55:S55) - SUM(T55:T55) - SUM(P55:P55) - V55,0) -> 0 | K55: ООО "Спецбланк-Москва" | M55: В течение 30 дней, со дня подписания сторонами контракта | N55: 2021-03-29 | O55: Не позднее 30 календарных дней с момента подписания акта приема-сдачи и документа на оплату | P55: 36136.5 | Q55: 2021-04-12 | X55: 9
A56: 9 | D56: 92500000000000000244 | E56: 8 | F56: 2021-02-26 | G56: лампы | H56: 9378.4 | I56: =IF(X56 = 10, H56 + SUM(S56:S56) - SUM(T56:T56) - SUM(P56:P56) - V56,0) -> 0 | K56: ИП Сакс | N56: 2021-02-26 | O56: Не позднее 30 календарных дней с момента подписания акта приема-сдачи и документа на оплату | P56: 9378.4 | Q56: 2021-03-15 | X56: 10
A57: 10 | D57: 92500000000000000244 | E57: 582 | F57: 2021-03-09 | G57: доводчик дверной,обналичка | H57: 25090 | I57: =IF(X57 = 11, H57 + SUM(S57:S57) - SUM(T57:T57) - SUM(P57:P57) - V57,0) -> 0 | K57: ИП Бака | N57: 2021-03-09 | O57: Не позднее 30 календарных дней с момента подписания акта приема-сдачи и документа на оплату | P57: 25090 | Q57: 2021-03-15 | X57: 11
A58: 11 | D58: 92500000000000000244 | E58: 244 | F58: 2021-04-06 | G58: двез.средствари,де | H58: 13630 | I58: =IF(X58 = 12, H58 + SUM(S58:S58) - SUM(T58:T58) - SUM(P58:P58) - V58,0) -> 0 | K58: ИП Латышева | N58: 2021-04-06 | O58: Не позднее 30 календарных дней с момента подписания акта приема-сдачи и документа на оплату | P58: 13630 | Q58: 2021-04-23 | X58: 12
A59: 12 | D59: 92500000000000000244 | E59: 1 | F59: 2021-04-14 | G59: журналы,личные карты | H59: 3738 | I59: =IF(X59 = 13, H59 + SUM(S59:S59) - SUM(T59:T59) - SUM(P59:P59) - V59,0) -> 0 | K59: ООО "Краснодарский учколлектор" | N59: 2021-06-17 | O59: Не позднее 30 календарных дней с момента подписания акта приема-сдачи и документа на оплату | P59: 3738 | Q59: 2021-08-16 | X59: 13
A60: 13 | D60: 92500000000000000244 | E60: 14 | F60: 2021-04-20 | G60: конституция | H60: 4785 | I60: =IF(X60 = 14, H60 + SUM(S60:S60) - SUM(T60:T60) - SUM(P60:P60) - V60,0) -> 0 | K60: ООО "Кубанский библиотечный сервис" | N60: 2021-04-20 | O60: Не позднее 30 календарных дней с момента подписания акта приема-сдачи и документа на оплату | P60: 4785 | Q60: 2021-05-19 | X60: 14
A61: 14 | D61: 92500000000000000244 | E61: 222 | F61: 2021-04-26 | G61: извещатель пожарный | H61: 1000 | I61: =IF(X61 = 15, H61 + SUM(S61:S61) - SUM(T61:T61) - SUM(P61:P61) - V61,0) -> 0 | K61: ООО "Сигнал" | N61: 2021-04-27 | O61: Не позднее 30 календарных дней с момента подписания акта приема-сдачи и документа на оплату | P61: 1000 | Q61: 2021-05-19 | X61: 15
A62: 15 | D62: 92500000000000000244 | E62: АТ00-03987 | F62: 2021-06-02 | G62: аттестаты программа | H62: 1000 | I62: =IF(X62 = 16, H62 + SUM(S62:S62) - SUM(T62:T62) - SUM(P62:P62) - V62,0) -> 0 | K62: ООО "АйТи Мониторинг" | N62: 2021-06-02 | O62: Не позднее 30 календарных дней с момента подписания акта приема-сдачи и документа на оплату | P62: 1000 | Q62: 2021-06-08 | X62: 16
A63: 16 | D63: 92500000000000000244 | E63: 3406/207 | F63: 2021-06-01 | G63: переодическая печать | H63: 9775.48 | I63: =IF(X63 = 17, H63 + SUM(S63:S63) - SUM(T63:T63) - SUM(P63:P63) - V63,0) -> 0 | K63: АО Почта России | N63: 2021-06-01 | O63: предоплата | P63: 9775.48 | Q63: 2021-06-09 | X63: 17
A64: 17 | D64: 92500000000000000244 | E64: 338 | F64: 2021-06-15 | G64: детская формаАвтогородок | H64: 16600 | I64: =IF(X64 = 18, H64 + SUM(S64:S66) - SUM(T64:T66) - SUM(P64:P66) - V64,0) -> 0 | K64: ИП Музуров А.А. | N64: 2021-07-23 | O64: не позднее 30 календарных дней | P64: 7250 | Q64: 2021-07-30 | X64: 18
N65: 2021-07-23 | P65: 350 | Q65: 2021-07-30 | X65: 18
N66: 2021-07-23 | P66: 9000 | Q66: 2021-07-30 | X66: 18
A67: 18 | D67: 92500000000000000244 | E67: 2021.136866 | F67: 2021-06-15 | G67: Автогородок | H67: 68000 | I67: =IF(X67 = 19, H67 + SUM(S67:S68) - SUM(T67:T68) - SUM(P67:P68) - V67,0) -> 0 | K67: ИП Музуров А.А. | N67: 2021-07-23 | O67: не позднее 30 календарных дней | P67: 68000 | Q67: 2021-07-30 | X67: 19
X68: 19
A69: 19 | D69: 92500000000000000244 | E69: 18 | F69: 2021-05-27 | G69: принтер 2шт ЕГЭ | H69: 56000 | I69: =IF(X69 = 20, H69 + SUM(S69:S69) - SUM(T69:T69) - SUM(P69:P69) - V69,0) -> 0 | K69: ИП Титаренко И.М | N69: 2021-05-27 | O69: не позднее 30 календарных дней | P69: 56000 | Q69: 2021-05-30 | X69: 20
A70: 20 | D70: 92500000000000000244 | E70: 107 | F70: 2021-06-01 | G70: хознужды | H70: 21610 | I70: =IF(X70 = 21, H70 + SUM(S70:S70) - SUM(T70:T70) - SUM(P70:P70) - V70,0) -> 0 | K70: ИП Латышева Н.П | N70: 2021-06-01 | O70: не позднее 30 календарных дней | P70: 21610 | Q70: 2021-06-08 | X70: 21
A71: 21 | D71: 92500000000000000244 | E71: 15 | F71: 2021-07-01 | G71: экскурсионные услуги | H71: 25200 | I71: =IF(X71 = 22, H71 + SUM(S71:S71) - SUM(T71:T71) - SUM(P71:P71) - V71,0) -> 0 | K71: МРО провославный приход храма Вознесения Господня | N71: 2021-07-07 | O71: не позднее 30 календарных дней | P71: 25200 | Q71: 2021-07-09 | X71: 22
A72: 22 | D72: 92500000000000000244 | E72: 734 | F72: 2021-07-15 | G72: лабораторные исследования воды | H72: 3832.55 | I72: =IF(X72 = 23, H72 + SUM(S72:S72) - SUM(T72:T72) - SUM(P72:P72) - V72,0) -> 0 | K72: ФБУЗ "Цнтр гигиены и эпидимиологии в Краснодарском крае" | N72: 2021-07-15 | O72: не позднее 30 календарных дней | P72: 3832.55 | Q72: 2021-08-16 | X72: 23
A73: 23 | D73: 92500000000000000244 | E73: 321-21/24 | F73: 2021-08-11 | G73: Оценка аренды Райпо | H73: 8000 | I73: =IF(X73 = 24, H73 + SUM(S73:S73) - SUM(T73:T73) - SUM(P73:P73) - V73,0) -> 1000 | K73: Союз "Тимашевская Торгово-промышленная палата" | N73: 2021-08-26 | O73: не позднее 30 календарных дней | P73: 7000 | Q73: 2021-09-06 | X73: 24
A74: 24 | D74: 92500000000000000244 | E74: 321-21/24 | F74: 2021-06-23 | G74: Оценка аренды Техникум | H74: 8000 | I74: =IF(X74 = 25, H74 + SUM(S74:S74) - SUM(T74:T74) - SUM(P74:P74) - V74,0) -> 0 | K74: Союз "Тимашевская Торгово-промышленная палата" | N74: 2021-07-26 | O74: не позднее 30 календарных дней | P74: 8000 | Q74: 2021-08-06 | X74: 25
A75: 25 | D75: 92500000000000000244 | E75: 20 | F75: 2021-06-24 | G75: таблички | H75: 20000 | I75: =IF(X75 = 26, H75 + SUM(S75:S75) - SUM(T75:T75) - SUM(P75:P75) - V75,0) -> 0 | K75: ИП Барам В.Н. | N75: 2021-06-24 | O75: не позднее 30 календарных дней | P75: 20000 | Q75: 2021-07-01 | X75: 26
A76: 26 | D76: 92500000000000000244 | E76: SYUT-18459 | F76: 2021-06-24 | G76: Ларь морозильный | H76: 33645 | I76: =IF(X76 = 27, H76 + SUM(S76:S76) - SUM(T76:T76) - SUM(P76:P76) - V76,0) -> 0 | K76: ООО"Сервис-ЮГ-ККМ" | N76: 2021-06-24 | O76: не позднее 30 календарных дней | P76: 33645 | Q76: 2021-07-01 | X76: 27
A77: 27 | D77: 92500000000000000244 | E77: 21 | F77: 2011-06-28 | G77: канцтовары | H77: 25025 | I77: =IF(X77 = 28, H77 + SUM(S77:S77) - SUM(T77:T77) - SUM(P77:P77) - V77,0) -> 0 | K77: ИПИ Кислинская Ю.Н | N77: 2011-06-28 | O77: не позднее 30 календарных дней | P77: 25025 | Q77: 2021-07-01 | X77: 28
A78: 28 | D78: 92500000000000000244 | E78: 26 | F78: 2021-08-05 | G78: экскурсионные услуги Новороссийск | H78: 10640 | I78: =IF(X78 = 29, H78 + SUM(S78:S78) - SUM(T78:T78) - SUM(P78:P78) - V78,0) -> 0 | K78: МРО Провославныйприход храма Вознесения Господне.КК Ейской епархии . | N78: 2021-08-11 | O78: не позднее 30 календарных дней | P78: 10640 | Q78: 2021-08-17 | X78: 29
A79: 29 | D79: 92500000000000000244 | E79: 15 | F79: 2021-08-04 | G79: Экскурсионное обслуж.музей | H79: 2090 | I79: =IF(X79 = 30, H79 + SUM(S79:S79) - SUM(T79:T79) - SUM(P79:P79) - V79,0) -> 0 | K79: МинфинКК( ГБУК КК "НИМЗ" | N79: 2021-08-11 | O79: не позднее 30 календарных дней | P79: 2090 | Q79: 2021-08-17 | X79: 30
A80: 30 | D80: 92500000000000000244 | E80: 416 | F80: 2021-09-09 | G80: ремонт кровли | H80: 50000 | I80: =IF(X80 = 31, H80 + SUM(S80:S80) - SUM(T80:T80) - SUM(P80:P80) - V80,0) -> 0 | K80: ООО "Сигнал" | N80: 2021-09-14 | O80: не позднее 30 календарных дней | P80: 50000 | Q80: 2021-09-22 | X80: 31
A81: 31 | D81: 92500000000000000244 | E81: 352 | F81: 2021-09-09 | G81: лабораторные электрические испытания | H81: 20000 | I81: =IF(X81 = 32, H81 + SUM(S81:S81) - SUM(T81:T81) - SUM(P81:P81) - V81,0) -> 0 | K81: ООО "Сигнал" | N81: 2021-09-09 | O81: не позднее 30 календарных дней | P81: 20000 | Q81: 2021-09-16 | X81: 32
A82: 32 | D82: 92500000000000000244 | E82: 602 | F82: 2021-09-16 | G82: Изделия их ПВХ,дверь шпонированная | H82: 93373.99 | I82: =IF(X82 = 33, H82 + SUM(S82:S82) - SUM(T82:T82) - SUM(P82:P82) - V82,0) -> 300 | K82: ИП Бака И.Н | N82: 2021-09-16 | O82: не позднее 30 календарных дней | P82: 93073.99 | Q82: 2021-09-22 | X82: 33
A83: 33 | D83: 92500000000000000244 | E83: 203 | F83: 2021-09-17 | G83: хознужды | H83: 34861 | I83: =IF(X83 = 34, H83 + SUM(S83:S83) - SUM(T83:T83) - SUM(P83:P83) - V83,0) -> 0 | K83: ИП Латышева | N83: 2021-10-28 | O83: не позднее 30 календарных дней | P83: 34861 | Q83: 2021-11-08 | X83: 34
A84: 34 | D84: 92500000000000000244 | E84: 36 | F84: 2021-09-28 | G84: накопитель | H84: 8200 | I84: =IF(X84 = 35, H84 + SUM(S84:S84) - SUM(T84:T84) - SUM(P84:P84) - V84,0) -> 0 | K84: ИП Даценко | N84: 2021-09-28 | O84: не позднее 30 календарных дней | P84: 8200 | Q84: 2021-09-30 | X84: 35
A85: 35 | D85: 92500000000000000244 | E85: СП-Т-13/21 | F85: 2021-10-05 | G85: учеба ФЗ44 | H85: 4000 | I85: =IF(X85 = 36, H85 + SUM(S85:S85) - SUM(T85:T85) - SUM(P85:P85) - V85,0) -> 0 | K85: ООО"АСМ-Партнер" | N85: 2021-10-06 | O85: не позднее 30 календарных дней | P85: 4000 | Q85: 2021-10-12 | X85: 36
A86: 36 | D86: 92500000000000000244 | E86: 54 | F86: 2021-10-19 | G86: опрессовка | H86: 19000 | I86: =IF(X86 = 37, H86 + SUM(S86:S86) - SUM(T86:T86) - SUM(P86:P86) - V86,0) -> 0 | K86: АО "АТЭК" | N86: 2021-10-19 | O86: не позднее 30 календарных дней | P86: 19000 | Q86: 2021-11-12 | X86: 37
A87: 37 | D87: 92500000000000000244 | E87: 39 | F87: 2021-10-28 | G87: лампы | H87: 12960 | I87: =IF(X87 = 38, H87 + SUM(S87:S87) - SUM(T87:T87) - SUM(P87:P87) - V87,0) -> 0 | K87: ИП Сакс | O87: не позднее 30 календарных дней | P87: 12960 | X87: 38
A88: 38 | D88: 92500000000000000244 | E88: 52 | F88: 2020-12-25 | G88: за тех.обслуживание узла учета | I88: =IF(X88 = 39, H88 + SUM(S88:S89) - SUM(T88:T89) - SUM(P88:P89) - V88,0) -> 0 | J88: 235301271520 | O88: не позднее 30 кален.дн | X88: 39
X89: 39
A90: 39 | D90: 92500000000000000244 | E90: 07/14/52-п/4 | F90: 2020-12-24 | I90: =IF(X90 = 40, H90 + SUM(S90:S91) - SUM(T90:T91) - SUM(P90:P91) - V90,0) -> 0 | K90: ФФГУП "Охрана" | O90: не прзднее 30 кален жн | X90: 40
X91: 40
A92: 40 | D92: 92500000000000000244 | E92: 350 | F92: 2021-07-19 | G92: за ремонт автоматической пожарной сигнализации | H92: 60000 | I92: =IF(X92 = 41, H92 + SUM(S92:S92) - SUM(T92:T92) - SUM(P92:P92) - V92,0) -> 0 | J92: 2353002302 | K92: ООО "Сигнал" | N92: 2021-09-03 | O92: не позднее 30 календарных дней | P92: 60000 | Q92: 2021-09-20 | X92: 41
A93: 41 | D93: 92500000000000000244 | E93: 10-2021 | F93: 2021-10-27 | G93: Автомат макет | H93: 28250 | I93: =IF(X93 = 42, H93 + SUM(S93:S93) - SUM(T93:T93) - SUM(P93:P93) - V93,0) -> 100 | K93: ИП Данилкин С.Ю. | N93: 2021-12-07 | O93: не позднее 30 календарных дней | P93: 28150 | Q93: 2021-12-23 | X93: 42
A94: 42 | D94: 92500000000000000244 | E94: 43 | F94: 2021-11-01 | G94: ООО "Тимашевское ПРТ райпо" | H94: 269800 | I94: =IF(X94 = 43, H94 + SUM(S94:S99) - SUM(T94:T99) - SUM(P94:P99) - V94,0) -> 0 | K94: Услуга питания 19 руб ноябрь-декабрь | N94: 2021-11-01 | O94: не позднее 30 календарных дней | P94: 38646 | Q94: 2021-12-01 | X94: 43
N95: 2021-11-26 | P95: 76209 | Q95: 2021-12-13 | X95: 43
N96: 2021-11-30 | P96: 14516 | Q96: 2021-12-13 | X96: 43
N97: 2021-12-10 | P97: 55347 | Q97: 2021-12-29 | X97: 43
N98: 2021-12-24 | P98: 71022 | Q98: 2021-12-29 | X98: 43
N99: 2021-12-28 | P99: 14060 | Q99: 2021-12-29 | X99: 43
A100: 43 | D100: 92500000000000000244 | E100: 44 | F100: 2021-11-01 | G100: ООО "Тимашевское ПРТ райпо" | H100: 449961.46 | I100: =IF(X100 = 44, H100 + SUM(S100:S105) - SUM(T100:T105) - SUM(P100:P105) - V100,0) -> 7.639755495e-11 | K100: Питание 1-4 класс ноябрь | N100: 2021-11-12 | O100: не позднее 30 календарных дней | P100: 7647.18 | Q100: 2021-12-01 | U100: 09.12.2021 | V100: 23309.52 | X100: 44
N101: 2021-11-12 | P101: 119803.26 | Q101: 2021-12-01 | X101: 44
N102: 2021-11-26 | P102: 15080.05 | Q102: 2021-12-06 | X102: 44
N103: 2021-12-06 | P103: 236249.21 | Q103: 2021-11-26 | X103: 44
N104: 2021-12-09 | P104: 44999.85 | Q104: 2021-11-30 | X104: 44
N105: 2021-11-30 | P105: 2872.39 | Q105: 2021-12-09 | X105: 44
A106: 44 | D106: 92500000000000000244 | E106: 42 | F106: 2021-11-01 | G106: ООО "Тимашевское ПРТ райпо" | H106: 39680 | I106: =IF(X106 = 45, H106 + SUM(S106:S107) - SUM(T106:T107) - SUM(P106:P107) - V106,0) -> 0 | K106: питание ОВЗ | N106: 2021-11-30 | O106: не позднее 30 календарных дней | P106: 14296 | Q106: 2021-12-20 | U106: 29.12.2021 | V106: 9544 | X106: 45
N107: 2021-12-29 | P107: 15840 | Q107: 2021-12-29 | X107: 45
A108: 45 | D108: 92500000000000000244 | E108: 18.04830918 | F108: 2021-11-15 | G108: АО"Почта России" | H108: 10473.09 | I108: =IF(X108 = 46, H108 + SUM(S108:S108) - SUM(T108:T108) - SUM(P108:P108) - V108,0) -> 0 | K108: подписка | N108: 2021-11-15 | O108: не позднее 30 календарных дней | P108: 10473.09 | Q108: 2021-11-25 | X108: 46
A109: 46 | D109: 92500000000000000244 | E109: А-114877 | F109: 2021-11-22 | G109: ООО "Айдеко" | H109: 30475 | I109: =IF(X109 = 47, H109 + SUM(S109:S109) - SUM(T109:T109) - SUM(P109:P109) - V109,0) -> 0 | K109: шлюз безопасности программа | N109: 2021-12-08 | O109: не позднее 30 календарных дней | P109: 30475 | Q109: 2021-12-14 | X109: 47
A110: 47 | D110: 92500000000000000244 | E110: 2021.288560 | F110: 2021-11-23 | G110: ООО "ТД -Логистика" | H110: 64400 | I110: =IF(X110 = 48, H110 + SUM(S110:S110) - SUM(T110:T110) - SUM(P110:P110) - V110,0) -> 0 | K110: плита электрическая | N110: 2021-12-06 | O110: не позднее 30 календарных дней | P110: 64400 | Q110: 2021-12-14 | X110: 48
A111: 48 | D111: 92500000000000000244 | E111: 45 | F111: 2021-12-03 | G111: ООО "Тит-мебель" | H111: 43520 | I111: =IF(X111 = 49, H111 + SUM(S111:S111) - SUM(T111:T111) - SUM(P111:P111) - V111,0) -> 0 | K111: стулья | N111: 2021-12-03 | O111: не позднее 30 календарных дней | P111: 43520 | Q111: 2021-12-09 | X111: 49
A112: 49 | D112: 92500000000000000244 | E112: 41 | F112: 2021-12-03 | G112: ИП Даценко | H112: 17.51 | I112: =IF(X112 = 50, H112 + SUM(S112:S112) - SUM(T112:T112) - SUM(P112:P112) - V112,0) -> 0 | K112: СД диск | N112: 2021-12-03 | O112: не позднее 30 календарных дней | P112: 17.51 | Q112: 2021-12-09 | X112: 50
A113: 50 | D113: 92500000000000000244 | E113: 31Ю/21-61/1 | F113: 2021-12-03 | G113: ГБУ Краснодарского края "Краевая техничсикая инвентаризация -Краевое БТИ" | H113: 17900.17 | I113: =IF(X113 = 51, H113 + SUM(S113:S113) - SUM(T113:T113) - SUM(P113:P113) - V113,0) -> 0 | K113: тех заключение на здание | N113: 2021-12-16 | O113: не позднее 30 календарных дней | P113: 17900.17 | Q113: 2021-12-17 | X113: 51
A114: 51 | D114: 92500000000000000244 | E114: М7 | F114: 07.12.201 | G114: ИП Тюменцева Т.А | H114: 13050 | I114: =IF(X114 = 52, H114 + SUM(S114:S114) - SUM(T114:T114) - SUM(P114:P114) - V114,0) -> 0 | K114: мячи ПВХ | N114: 2021-12-07 | O114: не позднее 30 календарных дней | P114: 13050 | Q114: 2021-12-09 | X114: 52
A115: 52 | D115: 92500000000000000244 | E115: СОУТ 278/6Е-21 | F115: 2021-12-07 | G115: ГК."АТОН" | H115: 17600 | I115: =IF(X115 = 53, H115 + SUM(S115:S115) - SUM(T115:T115) - SUM(P115:P115) - V115,0) -> 0 | K115: спецоценка условий труда | N115: 2021-12-07 | O115: не позднее 30 календарных дней | P115: 17600 | Q115: 2021-12-22 | X115: 53
A116: 53 | D116: 92500000000000000244 | F116: 2021-12-10 | G116: ООО "Тит-мебель" | H116: 27300 | I116: =IF(X116 = 54, H116 + SUM(S116:S116) - SUM(T116:T116) - SUM(P116:P116) - V116,0) -> 0 | K116: ресепшн | N116: 2021-12-14 | O116: не позднее 30 календарных дней | P116: 27300 | Q116: 2011-12-15 | X116: 54
A117: 54 | D117: 92500000000000000244 | E117: 302 | F117: 2021-12-10 | G117: ИП Латышев Е.А | H117: 19026 | I117: =IF(X117 = 55, H117 + SUM(S117:S117) - SUM(T117:T117) - SUM(P117:P117) - V117,0) -> 0 | K117: хознуды | N117: 2021-12-10 | O117: не позднее 30 календарных дней | P117: 19026 | Q117: 2021-12-17 | X117: 55
A118: 55 | D118: 92500000000000000244 | E118: 51 | F118: 2021-12-16 | G118: ИПБурцев А.В (Дети Юга) | H118: 67880 | I118: =IF(X118 = 56, H118 + SUM(S118:S118) - SUM(T118:T118) - SUM(P118:P118) - V118,0) -> 0 | K118: стенка швецкая, тренажер | N118: 2021-12-17 | O118: не позднее 30 календарных дней | P118: 67880 | Q118: 2011-12-22 | X118: 56
A119: 56 | D119: 92500000000000000244 | E119: 52 | F119: 2021-12-17 | G119: ИП Сакс | H119: 35441.65 | I119: =IF(X119 = 57, H119 + SUM(S119:S119) - SUM(T119:T119) - SUM(P119:P119) - V119,0) -> 0 | K119: хознужды | N119: 2021-12-17 | O119: не позднее 30 календарных дней | P119: 35441.65 | Q119: 2021-12-22 | X119: 57
A120: 57 | D120: 92500000000000000244 | E120: 333-ПУ | F120: 2021-12-17 | G120: ИП Казерова | H120: 6000 | I120: =IF(X120 = 58, H120 + SUM(S120:S120) - SUM(T120:T120) - SUM(P120:P120) - V120,0) -> 0 | K120: Оказание информационно-консультационных услуг по заполнению и подаче заявки о постановке объекта, оказывающего негативное воздействие на окружающую среду | N120: 2021-12-17 | O120: не позднее 30 календарных дней | P120: 6000 | Q120: 2021-12-24 | X120: 58
A121: 58 | D121: 92500000000000000244 | E121: 763 | F121: 2021-12-07 | G121: Союз торгово промышленная палата | H121: 4000 | I121: =IF(X121 = 59, H121 + SUM(S121:S121) - SUM(T121:T121) - SUM(P121:P121) - V121,0) -> 0 | K121: экспертиза | N121: 2021-12-07 | O121: не позднее 30 календарных дней | P121: 4000 | Q121: 24.12.201 | X121: 59
A122: 59 | D122: 92500000000000000244 | E122: 611 | I122: =IF(X122 = 60, H122 + SUM(S122:S122) - SUM(T122:T122) - SUM(P122:P122) - V122,0) -> 0 | X122: 60
A123: 60 | D123: 92500000000000000244 | I123: =IF(X123 = 61, H123 + SUM(S123:S123) - SUM(T123:T123) - SUM(P123:P123) - V123,0) -> 0 | X123: 61
X124: 62

Sheet Ед. поставщик п.5 ч.1
F2: Сумма заключенных контрактов | H2: =SUM(H9:H9999) -> 7378770.89 | N2: Сумма средств выплаченных по контрактам | P2: =SUM(P9:P9999) -> 6686015.25 | S2: Общая сумма расторжений по контрактам/договорам | V2: =SUM(V9:V9999) -> 282983.67
A6: № п/п | B6: Наименование муниципальной программы, национального или регионального проекта | C6: Контракт заключен в электронном виде посредством АИС "Портал поставщиков" (Да/Нет) | D6: Код бюджетной классификации | E6: № договора/контракта | F6: Дата заключения договора/контракта | G6: Предмет договора/контракта | H6: Цена договора/контракта | I6: Остаток по контракту | J6: ИНН поставщика (подрядчика, исполнителя) | K6: Поставщик (подрядчик, исполнитель) | L6: СМП и СОНО (Да/Нет) | M6: Сроки поставки товара (оказания услуги, выполнения работы), согласно контракта; Предоставление документов на оплату Закзчику | N6: Фактическая дата поставки товара (оказания услуги, выполнения работы) и (или) предоставление документов на оплату и подписание документов о приемке | O6: Сроки оплаты согласно договора/контракта | P6: Сумма согласно документа об исполнении контракта заказчиком | Q6: Фактическая дата оплаты | R6: Изменение контракта (№, дата) | S6: Изменение контракта (увеличение цены контракта в рублях) | T6: Изменение контракта (уменьшение цены контракта в рублях) | U6: Расторжение контракта (№, дата) | V6: Сумма расторжения | W6: Примечание
A7: 1 | B7: 2 | C7: 3 | D7: 4 | E7: 5 | F7: 6 | G7: 7 | H7: 8 | I7: 9 | J7: 10 | K7: 11 | L7: 12 | M7: 13 | N7: 14 | O7: 15 | P7: 16 | Q7: 17 | R7: 18 | S7: 19 | T7: 20 | U7: 21 | V7: 22 | W7: 23
A8: 1 | B8: Муниципальная программа "Развитие образования" | D8: 902 0113 1310110490 244 | E8: № 1 | F8: 2020-01-09 | G8: Поставка бумаги для офисной техники | H8: 20000 | I8: 0 | J8: 2353019514 | K8: ИП Котляров К.И. | M8: В течение 15 рабочих дней, со дня подписания сторонами контракта | N8: 2020-01-10 | O8: Не позднее 30 календарных дней с момента подписания Заказчиком и Подрядчиком акта приема-сдачи и предоставленного Подрядчиком документа на оплату | P8: 20000 | Q8: 2020-01-10 | W8: Пример
A9: 1 | D9: 92500000000000000244 | E9: 23 | F9: 2020-12-24 | G9: техическое обслуживания технических средств охраны объекта(тревожная кнопка) | H9: 5337.6 | I9: =IF(X9 = 4, H9 + SUM(S9:S20) - SUM(T9:T20) - SUM(P9:P20) - V9,0) -> -9.094947018e-13 | K9: ФГУП "Охрана"Федеральной службы войск национальной гвардии Российской Федерации | M9: ежедневно | N9: 2021-01-31 | O9: Не позднее 30 календарных дней с момента подписания Заказчиком и Подрядчиком акта приема-сдачи и предоставленного Подрядчиком документа на оплату | P9: 444.8 | Q9: 2021-02-08 | X9: 4
N10: 2021-02-28 | P10: 444.8 | Q10: 2021-03-04 | X10: 4
N11: 2021-03-31 | P11: 444.8 | Q11: 2021-04-08 | X11: 4
N12: 2021-04-30 | P12: 444.8 | Q12: 2021-05-12 | X12: 4
N13: 2021-05-31 | P13: 444.8 | Q13: 2021-06-08 | X13: 4
N14: 2021-06-30 | P14: 444.8 | Q14: 2021-08-13 | X14: 4
N15: 2021-07-31 | P15: 444.8 | Q15: 2021-08-04 | X15: 4
N16: 2021-08-31 | P16: 444.8 | Q16: 2021-09-13 | X16: 4
N17: 2021-09-30 | P17: 444.8 | Q17: 2021-10-15 | X17: 4
N18: 2021-10-31 | P18: 444.8 | Q18: 2021-11-09 | X18: 4
N19: 2021-11-30 | P19: 444.8 | Q19: 2021-12-01 | X19: 4
P20: 444.8 | X20: 4
A21: 2 | D21: 92500000000000000244 | E21: 23 | F21: 2020-12-25 | G21: сервисное тех.обслуживание теплосчетчиков | H21: 31000 | I21: =IF(X21 = 5, H21 + SUM(S21:S32) - SUM(T21:T32) - SUM(P21:P32) - V21,0) -> 0 | K21: ИП Дудкин | M21: ежемесячно | N21: 2021-01-27 | O21: Не позднее 30 календарных дней с момента подписания Заказчиком и Подрядчиком акта приема-сдачи и предоставленного Подрядчиком документа на оплату | P21: 3000 | Q21: 2021-02-04 | X21: 5
N22: 2021-02-26 | P22: 3000 | Q22: 2021-03-02 | X22: 5
N23: 2021-03-30 | P23: 3000 | Q23: 2021-04-05 | X23: 5
N24: 2021-04-27 | P24: 3000 | Q24: 2021-05-13 | X24: 5
N25: 2021-05-27 | P25: 2000 | Q25: 2021-06-09 | X25: 5
N26: 2021-06-30 | P26: 2000 | Q26: 2021-07-09 | X26: 5
N27: 2021-07-30 | P27: 2000 | Q27: 2021-08-09 | X27: 5
N28: 2021-08-30 | P28: 2000 | Q28: 2021-09-05 | X28: 5
N29: 2021-09-30 | P29: 2000 | Q29: 2021-10-08 | X29: 5
N30: 2021-10-25 | P30: 3000 | Q30: 2021-11-09 | X30: 5
N31: 2021-11-24 | P31: 3000 | Q31: 2021-12-01 | X31: 5
N32: 2021-12-20 | P32: 3000 | Q32: 2021-12-24 | X32: 5
A33: 3 | D33: 92500000000000000244 | E33: 28 | F33: 2020-12-23 | G33: услуги по обращенияс ТКО | H33: 155750.06 | I33: =IF(X33 = 6, H33 + SUM(S33:S44) - SUM(T33:T44) - SUM(P33:P44) - V33,0) -> 62982.02 | K33: ОО Чистый город | M33: ежежневно | N33: 2021-01-29 | O33: Не позднее 30 календарных дней с момента подписания Заказчиком и Подрядчиком акта приема-сдачи и предоставленного Подрядчиком документа на оплату | P33: 12921.95 | Q33: 2021-02-08 | X33: 6
N34: 2021-03-31 | P34: 15043.47 | Q34: 2021-06-18 | X34: 6
X35: 6
X36: 6
N37: 2021-06-30 | P37: 1735.78 | Q37: 2021-08-13 | X37: 6
N38: 2021-07-30 | P38: 6364.54 | Q38: 2021-08-13 | X38: 6
N39: 2021-09-30 | P39: 17936.44 | Q39: 2021-10-15 | X39: 6
N40: 2021-08-31 | P40: 7521.73 | Q40: 2021-10-15 | X40: 6
N41: 2021-10-29 | P41: 16200.66 | Q41: 2021-11-22 | X41: 6
N42: 2021-11-30 | P42: 15043.47 | Q42: 2021-12-14 | X42: 6
X43: 6
X44: 6
A45: 4 | D45: 92500000000000000244 | E45: 1 | F45: 2020-12-25 | G45: Интернет КУБАННЕТ | H45: =147795.24 -> 147795.24 | I45: =IF(X45 = 7, H45 + SUM(S45:S47) - SUM(T45:T47) - SUM(P45:P47) - V45,0) -> -1.455191523e-11 | K45: ПАО "Ростелеком" | M45: ежедневно | N45: 2021-01-31 | O45: Не позднее 30 календарных дней с момента подписания Заказчиком и Подрядчиком акта приема-сдачи и предоставленного Подрядчиком документа на оплату | P45: 12316.27 | Q45: 2021-02-11 | U45: №1 от 28.02.2021 | V45: 123162.7 | X45: 7
N46: 2021-02-28 | P46: 12316.27 | Q46: 2021-02-28 | X46: 7
X47: 7
A48: 5 | D48: 92500000000000000244 | E48: 230 | F48: 2020-12-25 | G48: телефон (основной) | H48: 15600 | I48: =IF(X48 = 8, H48 + SUM(S48:S61) - SUM(T48:T61) - SUM(P48:P61) - V48,0) -> 2245.35 | K48: ПАО "Ростелеком" | M48: ежедневно | N48: 2021-01-31 | O48: Не позднее 30 календарных дней с момента подписания Заказчиком и Подрядчиком акта приема-сдачи и предоставленного Подрядчиком документа на оплату | P48: 1170.48 | Q48: 2021-02-11 | X48: 8
N49: 2021-02-28 | P49: 1210.39 | Q49: 2021-03-10 | X49: 8
N50: 2021-03-31 | P50: 1188.74 | Q50: 2021-04-08 | X50: 8
N51: 2021-04-30 | P51: 1218.62 | Q51: 2021-05-14 | X51: 8
N52: 2021-05-31 | P52: 1195.92 | Q52: 2021-06-18 | X52: 8
N53: 2021-06-30 | P53: 1315.42 | Q53: 2021-07-19 | X53: 8
N54: 2021-07-31 | P54: 1168.24 | Q54: 2021-08-13 | X54: 8
N55: 2021-06-30 | P55: 1315.42 | Q55: 20.08.20211 | X55: 8
N56: 2021-09-30 | P56: 1191.59 | Q56: 2021-10-15 | X56: 8
N57: 2021-10-31 | P57: 1192.99 | Q57: 2021-11-22 | X57: 8
N58: 2021-11-30 | P58: 1186.84 | Q58: 2021-12-21 | X58: 8
X59: 8
X60: 8
X61: 8
A62: 6 | D62: 92500000000000000244 | E62: 230-Б2 | F62: 2020-12-25 | G62: межугородн.переговоры. | H62: 3000 | I62: =IF(X62 = 9, H62 + SUM(S62:S67) - SUM(T62:T67) - SUM(P62:P67) - V62,0) -> 2638.78 | K62: ПАО "Ростелеком" | M62: ежндневно | N62: 2021-03-31 | O62: Не позднее 30 календарных дней с момента подписания Заказчиком и Подрядчиком акта приема-сдачи и предоставленного Подрядчиком документа на оплату | P62: 53.04 | Q62: 2021-04-08 | X62: 9
N63: 2021-04-30 | P63: 68.95 | Q63: 2021-05-14 | X63: 9
N64: 2021-09-30 | P64: 140.16 | Q64: 2021-10-15 | X64: 9
N65: 2021-10-31 | P65: 99.07 | Q65: 2021-11-22 | X65: 9
X66: 9
X67: 9
A68: 7 | D68: 92500000000000000244 | E68: 105.15 | F68: 2020-12-25 | G68: интернет 16000 | H68: 19200 | I68: =IF(X68 = 10, H68 + SUM(S68:S79) - SUM(T68:T79) - SUM(P68:P79) - V68,0) -> 0 | K68: ПАО "Ростелеком" | N68: 2021-01-31 | O68: Не позднее 30 календарных дней с момента подписания Заказчиком и Подрядчиком акта приема-сдачи и предоставленного Подрядчиком документа на оплату | P68: 1600 | Q68: 2021-02-11 | X68: 10
N69: 2021-02-28 | P69: 1600 | Q69: 2021-03-10 | X69: 10
N70: 2021-03-31 | P70: 1600 | Q70: 2021-04-08 | X70: 10
N71: 2021-04-30 | P71: 1600 | Q71: 2021-05-14 | X71: 10
N72: 2021-05-31 | P72: 1600 | Q72: 2021-06-18 | X72: 10
N73: 2021-07-31 | P73: 1600 | Q73: 2021-08-13 | X73: 10
N74: 2021-08-31 | P74: 1600 | Q74: 2021-09-14 | X74: 10
N75: 31.06.2021 | P75: 1600 | Q75: 2021-09-22 | X75: 10
N76: 31.09.2021 | P76: 1600 | Q76: 2021-10-15 | X76: 10
N77: 2021-10-31 | P77: 1600 | Q77: 2021-11-22 | X77: 10
N78: 2021-11-30 | P78: 1600 | Q78: 2021-12-21 | X78: 10
P79: 1600 | X79: 10
A80: 8 | D80: 92500000000000000244 | E80: 3 | F80: 2021-01-25 | G80: поставка молока январь-май | H80: 25245 | I80: =IF(X80 = 11, H80 + SUM(S80:S96) - SUM(T80:T96) - SUM(P80:P96) - V80,0) -> 2211 | K80: ООО Калория | N80: 2021-01-28 | O80: Не позднее 30 календарных дней с момента подписания Заказчиком и Подрядчиком акта приема-сдачи и предоставленного Подрядчиком документа на оплату | P80: 1320 | Q80: 2021-02-09 | X80: 11
N81: 2021-01-21 | P81: 1320 | Q81: 2021-02-24 | X81: 11
N82: 2021-01-14 | P82: 1320 | Q82: 2021-02-24 | X82: 11
N83: 2021-02-04 | P83: 1336.5 | Q83: 2021-02-24 | X83: 11
N84: 2021-02-11 | P84: 1353 | Q84: 2021-03-13 | X84: 11
N85: 2021-02-18 | P85: 1353 | Q85: 2021-03-12 | X85: 11
N86: 2021-03-04 | P86: 1353 | Q86: 2021-03-22 | X86: 11
N87: 2021-03-11 | P87: 1369.5 | Q87: 2021-03-22 | X87: 11
N88: 18.03.201 | P88: 1369.5 | Q88: 2021-04-06 | X88: 11
N89: 2021-02-25 | P89: 1353 | Q89: 2021-04-06 | X89: 11
N90: 2021-04-01 | P90: 1369.5 | Q90: 2021-04-23 | X90: 11
N91: 2021-04-08 | P91: 1369.5 | Q91: 2021-04-23 | X91: 11
N92: 2021-04-15 | P92: 1369.5 | Q92: 2021-04-23 | X92: 11
N93: 2021-04-22 | P93: 1369.5 | Q93: 2021-05-20 | X93: 11
N94: 2021-04-29 | P94: 1369.5 | Q94: 2021-05-20 | X94: 11
N95: 2021-05-13 | P95: 1369.5 | Q95: 2021-06-01 | X95: 11
N96: 2021-05-20 | P96: 1369.5 | Q96: 2021-06-02 | X96: 11
A97: 9 | D97: 92500000000000000244 | E97: 3 | F97: 2021-01-25 | G97: питание 6 руб | H97: 127500 | I97: =IF(X97 = 12, H97 + SUM(S97:S102) - SUM(T97:T102) - SUM(P97:P102) - V97,0) -> 0 | J97: 2353020735 | K97: РАЙПО | M97: ежедневно | N97: 2021-01-29 | O97: Не позднее 30 календарных дней с момента подписания Заказчиком и Подрядчиком акта приема-сдачи и предоставленного Подрядчиком документа на оплату | P97: 17922 | Q97: 2021-02-11 | U97: 07.06.2021 | V97: 36174 | X97: 12
N98: 2021-02-26 | P98: 19212 | Q98: 2021-03-12 | X98: 12
N99: 2021-03-31 | P99: 19758 | Q99: 2021-04-12 | X99: 12
N100: 2021-04-30 | P100: 26796 | Q100: 2021-05-20 | X100: 12
N101: 2021-05-21 | P101: 7638 | Q101: 2021-06-07 | X101: 12
X102: 12
A103: 10 | D103: 92500000000000000244 | E103: 2 | F103: 2021-01-25 | G103: питание 10 руб многодетные | H103: 36550 | I103: =IF(X103 = 13, H103 + SUM(S103:S108) - SUM(T103:T108) - SUM(P103:P108) - V103,0) -> 0 | J103: 2353020735 | K103: РаЙПО | M103: ежедневно | N103: 2021-01-29 | O103: Не позднее 30 календарных дней с момента подписания Заказчиком и Подрядчиком акта приема-сдачи и предоставленного Подрядчиком документа на оплату | P103: 3650 | Q103: 2021-02-11 | U103: 07.06.2021 | V103: 17290 | X103: 13
N104: 2021-02-26 | P104: 4010 | Q104: 2021-03-12 | X104: 13
N105: 2021-03-31 | P105: 4160 | Q105: 2021-04-12 | X105: 13
N106: 2021-04-30 | P106: 5600 | Q106: 2021-05-20 | X106: 13
N107: 2021-05-21 | P107: 1840 | Q107: 2021-06-07 | X107: 13
X108: 13
A109: 11 | D109: 92500000000000000244 | E109: 4 | F109: 2021-01-25 | G109: питание 62,60(1-4 классы) январь | H109: 422550 | I109: =IF(X109 = 14, H109 + SUM(S109:S112) - SUM(T109:T112) - SUM(P109:P112) - V109,0) -> 1.455191523e-11 | J109: 2353020735 | K109: ООО ПРТ Райпо | M109: ежедневно | N109: 2021-01-22 | O109: Не позднее 30 календарных дней с момента подписания Заказчиком и Подрядчиком акта приема-сдачи и предоставленного Подрядчиком документа на оплату | P109: 20819.86 | Q109: 2021-02-24 | U109: 24.02.2021 | V109: 75559.26 | X109: 14
N110: 2021-02-02 | P110: 326170.88 | Q110: 2021-02-24 | X110: 14
X111: 14
X112: 14
A113: 12 | D113: 92500000000000000244 | E113: 5 | F113: 2021-01-25 | G113: Питание ОВЗ за декабрь20/20/62,60 | H113: 69955 | I113: =IF(X113 = 15, H113 + SUM(S113:S118) - SUM(T113:T118) - SUM(P113:P118) - V113,0) -> 0 | J113: 2353020735 | K113: ООО ПРТ Райпо | M113: ежедневно | N113: 2021-01-29 | O113: Не позднее 30 календарных дней с момента подписания Заказчиком и Подрядчиком акта приема-сдачи и предоставленного Подрядчиком документа на оплату | P113: 10208 | Q113: 2021-02-11 | U113: 07.06.2021 | V113: 21329 | X113: 15
N114: 2021-02-26 | P114: 10917 | Q114: 2021-03-12 | X114: 15
N115: 2021-03-31 | P115: 10545 | Q115: 2021-04-12 | X115: 15
N116: 2021-04-30 | P116: 13720 | Q116: 2021-05-20 | X116: 15
N117: 2021-01-25 | P117: 3236 | Q117: 2021-06-07 | X117: 15
X118: 15
A119: 13 | D119: 92500000000000000244 | E119: 6 | F119: 2021-01-25 | G119: Услуги питания 16,5 декабрь 2020 | H119: 549994.5 | I119: =IF(X119 = 16, H119 + SUM(S119:S121) - SUM(T119:T121) - SUM(P119:P121) - V119,0) -> 343579.5 | J119: 2353020735 | K119: ООО ПРТ Райпо | M119: ежедневно | N119: 2021-01-29 | O119: Не позднее 30 календарных дней с момента подписания Заказчиком и Подрядчиком акта приема-сдачи и предоставленного Подрядчиком документа на оплату | P119: 97284 | Q119: 2021-03-01 | X119: 16
N120: 2021-02-26 | P120: 109131 | Q120: 2021-03-12 | X120: 16
X121: 16
A122: 14 | D122: 92500000000000000244 | E122: 7 | F122: 2021-02-01 | G122: питание 1-4 кл февраль 2021 | H122: 391060.1 | I122: =IF(X122 = 17, H122 + SUM(S122:S127) - SUM(T122:T127) - SUM(P122:P127) - V122,0) -> -5.820766091e-11 | J122: 2353020735 | K122: ООО ПРТ Райпо | M122: ежедневно | N122: 2021-02-05 | O122: Не позднее 30 календарных дней с момента подписания Заказчиком и Подрядчиком акта приема-сдачи и предоставленного Подрядчиком документа на оплату | P122: 6619.9 | Q122: 2021-03-19 | X122: 17
N123: 2021-02-19 | P123: 11821.11 | Q123: 2021-03-19 | X123: 17
N124: 2021-02-26 | P124: 5023.06 | Q124: 2021-03-19 | X124: 17
N125: 2021-02-05 | P125: 103709.66 | Q125: 2021-03-19 | X125: 17
N126: 2021-02-19 | P126: 185193.43 | Q126: 2021-03-19 | X126: 17
N127: 2021-02-26 | P127: 78692.94 | Q127: 2021-03-19 | X127: 17
A128: 15 | D128: 92500000000000000244 | E128: 32-1/21 | F128: 2021-02-16 | G128: мед.осмотры (край) | H128: 3798 | I128: =IF(X128 = 18, H128 + SUM(S128:S128) - SUM(T128:T128) - SUM(P128:P128) - V128,0) -> 0 | K128: ГБУЗ "Тимашевская ЦРБ" | N128: 2021-03-26 | O128: Не позднее 30 календарных дней с момента подписания Заказчиком и Подрядчиком акта приема-сдачи и предоставленного Подрядчиком документа на оплату | P128: 3798 | Q128: 2021-04-08 | X128: 18
A129: 16 | D129: 92500000000000000244 | E129: 32/21 | F129: 2021-02-16 | G129: мед.осмотры (край) | H129: 163026 | I129: =IF(X129 = 19, H129 + SUM(S129:S129) - SUM(T129:T129) - SUM(P129:P129) - V129,0) -> 0 | K129: ГБУЗ "Тимашевская ЦРБ" | N129: 2021-03-26 | O129: Не позднее 30 календарных дней с момента подписания Заказчиком и Подрядчиком акта приема-сдачи и предоставленного Подрядчиком документа на оплату | P129: 163026 | Q129: 2021-04-08 | X129: 19
A130: 17 | D130: 92500000000000000244 | E130: 9 | F130: 2021-03-03 | G130: питание 1-4 кл март 2021 | H130: 410448.28 | I130: =IF(X130 = 21, H130 + SUM(S130:S137) - SUM(T130:T137) - SUM(P130:P137) - V130,0) -> 5.820766091e-11 | K130: ПРТ Райпо | N130: 2021-03-19 | O130: Не позднее 30 календарных дней с момента подписания Заказчиком и Подрядчиком акта приема-сдачи и предоставленного Подрядчиком документа на оплату | P130: 12930.93 | Q130: 2021-04-21 | X130: 21
N131: 2021-03-19 | P131: 202580.31 | Q131: 2021-04-21 | X131: 21
N132: 2021-03-05 | P132: 7208.03 | Q132: 2021-04-21 | X132: 21
N133: 2021-03-05 | P133: 112923.39 | Q133: 2021-04-21 | X133: 21
N134: 2021-03-31 | P134: 4488.43 | Q134: 2021-04-21 | X134: 21
N135: 2021-03-31 | P135: 70317.19 | Q135: 2021-04-21 | X135: 21
X136: 21
X137: 21
A138: 18 | D138: 92500000000000000244 | E138: 10 | F138: 2021-03-03 | G138: услуга питания 19 руб | H138: 131594 | I138: =IF(X138 = 22, H138 + SUM(S138:S138) - SUM(T138:T138) - SUM(P138:P138) - V138,0) -> 0 | K138: ПРТ Райпо | N138: 2021-03-31 | O138: Не позднее 30 календарных дней с момента подписания Заказчиком и Подрядчиком акта приема-сдачи и предоставленного Подрядчиком документа на оплату | P138: 131594 | Q138: 2021-04-12 | X138: 22
A139: 19 | D139: 92500000000000000244 | E139: 201 | F139: 2021-03-17 | G139: Вывоз ТКО Крупногабаритный .Лодочка | H139: 21005.6 | I139: =IF(X139 = 23, H139 + SUM(S139:S140) - SUM(T139:T140) - SUM(P139:P140) - V139,0) -> -3884.68 | K139: ООО "Чистый город" | N139: 2021-04-30 | O139: Не позднее 30 календарных дней с момента подписания Заказчиком и Подрядчиком акта приема-сдачи и предоставленного Подрядчиком документа на оплату | P139: 13886.28 | Q139: 2021-06-18 | X139: 23
N140: 30.07.201 | P140: 11004 | Q140: 2021-08-16 | X140: 23
A141: 20 | D141: 92500000000000000244 | E141: 12 | F141: 2021-04-01 | G141: питание 1-4 кл апрель | H141: 535437.58 | I141: =IF(X141 = 25, H141 + SUM(S141:S141) - SUM(T141:T141) - SUM(P141:P141) - V141,0) -> 0 | K141: ООО ПРТ Райпо | M141: ежедневно | N141: 2021-04-30 | P141: 535437.58 | Q141: 2021-05-20 | X141: 25
A142: 21 | D142: 92500000000000000244 | E142: 13 | F142: 2021-04-01 | G142: Услуга питания 19ру.апрель | H142: 168150 | I142: =IF(X142 = 26, H142 + SUM(S142:S144) - SUM(T142:T144) - SUM(P142:P144) - V142,0) -> 0 | K142: ООО ПРТ Райпо | M142: ежедневно | N142: 2021-04-30 | P142: 168150 | Q142: 2021-05-20 | X142: 26
X143: 26
X144: 26
A145: 22 | D145: 92500000000000000244 | E145: 3679607 | F145: 2021-04-27 | G145: Бумага А4 (ЕГЭ) | H145: 45180 | I145: =IF(X145 = 27, H145 + SUM(S145:S145) - SUM(T145:T145) - SUM(P145:P145) - V145,0) -> 0 | K145: ИП Гришаев С.С | M145: в точени 2 дней | N145: 2021-04-27 | P145: 45180 | Q145: 2021-05-25 | X145: 27
A146: 23 | D146: 92500000000000000244 | E146: 16 | F146: 2021-05-12 | G146: питание 1-4 кл май | H146: 189796.01 | I146: =IF(X146 = 28, H146 + SUM(S146:S146) - SUM(T146:T146) - SUM(P146:P146) - V146,0) -> 0 | K146: ООО ПРТ Райпо | M146: ежедневно | N146: 2021-05-22 | P146: 189796.01 | Q146: 2021-07-07 | X146: 28
A147: 24 | D147: 92500000000000000244 | E147: 17 | F147: 2021-05-12 | G147: услуга 19 руб май | H147: 61503 | I147: =IF(X147 = 29, H147 + SUM(S147:S147) - SUM(T147:T147) - SUM(P147:P147) - V147,0) -> 0 | K147: ООО ПРТ Райпо | M147: ежедневно | N147: 2021-05-21 | P147: 61503 | Q147: 2021-06-07 | X147: 29
A148: 25 | D148: 92500000000000000244 | E148: 1194 | F148: 2021-05-13 | G148: Видеотрансляция ЕГЭ | H148: 405970.67 | I148: =IF(X148 = 30, H148 + SUM(S148:S152) - SUM(T148:T152) - SUM(P148:P152) - V148,0) -> -5.820766091e-11 | K148: ПАО "Ростелеком" | M148: ежедневно | N148: 2021-05-31 | P148: =169947.59+58120.67 -> 228068.26 | Q148: 2021-08-05 | X148: 30
N149: 2021-07-12 | P149: 148325.51 | Q149: 2021-08-05 | X149: 30
N150: 2021-08-31 | P150: 8721.82 | Q150: 2021-10-20 | X150: 30
X151: 30
N152: 2021-11-15 | P152: 20855.08 | Q152: 23.11.201 | X152: 30
A153: 26 | D153: 92500000000000000244 | E153: 19 | F153: 2021-06-04 | G153: ремонт библиотеки | H153: 338575.2 | I153: =IF(X153 = 32, H153 + SUM(S153:S154) - SUM(T153:T154) - SUM(P153:P154) - V153,0) -> 0 | K153: ИП Рогочих | N153: 2021-08-12 | P153: =335583+2992.2 -> 338575.2 | Q153: 2021-08-17 | X153: 32
X154: 32
A155: 27 | D155: 92500000000000000244 | E155: 23 | F155: 2021-06-15 | G155: ремонт музея | H155: 181028 | I155: =IF(X155 = 33, H155 + SUM(S155:S156) - SUM(T155:T156) - SUM(P155:P156) - V155,0) -> 1.818989404e-12 | K155: ИП Рогочих | N155: 2021-09-10 | P155: 165616 | Q155: 2021-09-21 | U155: 20.09.2021 | V155: -15197.31 | X155: 33
N156: 2021-09-10 | P156: 30609.31 | Q156: 2021-09-22 | X156: 33
A157: 28 | D157: 92500000000000000244 | E157: 24 | F157: 2021-06-28 | G157: ремонт лестницы | H157: 206926.01 | I157: =IF(X157 = 34, H157 + SUM(S157:S158) - SUM(T157:T158) - SUM(P157:P158) - V157,0) -> 0 | K157: ИП Рогочих | N157: 2021-06-28 | P157: 191025 | Q157: 2021-09-22 | X157: 34
N158: 2021-06-28 | P158: 15901.01 | Q158: 2021-09-22 | X158: 34
A159: 29 | D159: 92500000000000000244 | E159: 25 | F159: 2021-06-28 | G159: услуги по организации питания | H159: 58522.8 | I159: =IF(X159 = 35, H159 + SUM(S159:S160) - SUM(T159:T160) - SUM(P159:P160) - V159,0) -> 4.092726158e-12 | K159: ООО Тимашевское ПРТ Райпо | N159: 2021-06-28 | P159: 43696.24 | Q159: 2021-07-22 | U159: 22.07.2021 | V159: 3901.52 | X159: 35
N160: 2021-07-15 | P160: 10925.04 | Q160: 2021-07-22 | X160: 35
A161: 30 | D161: 92500000000000000244 | E161: 50 | F161: 2021-06-30 | G161: охрана | H161: 353280 | I161: =IF(X161 = 37, H161 + SUM(S161:S167) - SUM(T161:T167) - SUM(P161:P167) - V161,0) -> 0 | K161: ООО ЧОО"Легион" | M161: ежедневно | N161: 2021-07-31 | P161: 59520 | Q161: 2021-08-04 | X161: 37
N162: 2021-08-31 | P162: 59520 | Q162: 2021-09-01 | X162: 37
N163: 2021-09-30 | P163: 57600 | Q163: 2021-10-22 | X163: 37
N164: 2021-10-31 | P164: 59520 | Q164: 2021-11-09 | X164: 37
N165: 2021-12-21 | P165: 59520 | Q165: 2021-12-24 | X165: 37
N166: 2021-11-30 | P166: 57600 | Q166: 01.12.20211 | X166: 37
X167: 37
A168: 31 | D168: 92500000000000000244 | E168: 348 | F168: 2021-07-29 | G168: мебель для музея | H168: 103658 | I168: =IF(X168 = 40, H168 + SUM(S168:S168) - SUM(T168:T168) - SUM(P168:P168) - V168,0) -> 0 | K168: ООО ТитМебель | M168: 1 раз в месяц | N168: 2021-08-02 | P168: 103658 | Q168: 2021-08-05 | X168: 40
A169: 32 | D169: 92500000000000000244 | E169: 19/1 | F169: 2021-07-26 | G169: ремонт пола библиотеке | H169: 2360.98 | I169: =IF(X169 = 41, H169 + SUM(S169:S169) - SUM(T169:T169) - SUM(P169:P169) - V169,0) -> 0 | K169: ИП Рогочих | M169: 2 раз в месяц | N169: 2021-07-29 | P169: 2360.98 | Q169: 2021-08-23 | X169: 41
A170: 33 | D170: 92500000000000000244 | E170: 28 | F170: 2021-08-05 | G170: ремонт музея/доп работы | H170: 35000 | I170: =IF(X170 = 42, H170 + SUM(S170:S170) - SUM(T170:T170) - SUM(P170:P170) - V170,0) -> 0 | K170: ИП рогочих | P170: 35000 | X170: 42
A171: 34 | D171: 92500000000000000244 | E171: б/н | F171: 2021-09-01 | G171: проверка приборов теплосчетчики | H171: 35000 | I171: =IF(X171 = 43, H171 + SUM(S171:S171) - SUM(T171:T171) - SUM(P171:P171) - V171,0) -> 0 | K171: ИП Дудкин | N171: 2021-09-09 | P171: 35000 | Q171: 2021-09-15 | X171: 43
A172: 35 | D172: 92500000000000000244 | E172: 31 | F172: 2021-09-01 | G172: молоко | H172: 23205 | I172: =IF(X172 = 44, H172 + SUM(S172:S185) - SUM(T172:T185) - SUM(P172:P185) - V172,0) -> 0 | K172: ООО Калория | N172: 2021-09-01 | P172: 955.5 | Q172: 2021-10-08 | U172: 1-24.12.2021 | V172: 2454.5 | X172: 44
N173: 2021-09-01 | P173: 1443 | Q173: 2021-10-08 | X173: 44
N174: 2021-09-01 | P174: 1462.5 | Q174: 2021-10-15 | X174: 44
N175: 2021-10-07 | P175: 1462.5 | Q175: 2021-10-20 | X175: 44
N176: 2021-10-14 | P176: 1462.5 | Q176: 2021-10-26 | X176: 44
N177: 2021-10-29 | P177: 1560.5 | Q177: 2021-11-10 | X177: 44
N178: 2021-10-21 | P178: 1560.5 | Q178: 2021-11-19 | X178: 44
N179: 2021-11-11 | P179: 1560.5 | Q179: 2021-11-19 | X179: 44
N180: 2021-11-18 | P180: 1560.5 | Q180: 2021-12-09 | X180: 44
N181: 2021-11-25 | P181: 1560.5 | Q181: 2021-12-09 | X181: 44
N182: 2021-12-09 | P182: 1540.5 | Q182: 2021-12-14 | X182: 44
N183: 2021-12-16 | P183: 1540.5 | Q183: 2021-12-21 | X183: 44
N184: 2021-12-02 | P184: 1540.5 | Q184: 2021-12-24 | X184: 44
N185: 2021-12-23 | P185: 1540.5 | Q185: 2021-12-24 | X185: 44
A186: 36 | D186: 92500000000000000244 | E186: 32 | F186: 2021-09-01 | G186: питание 10 руб многодетные | H186: 31200 | I186: =IF(X186 = 45, H186 + SUM(S186:S189) - SUM(T186:T189) - SUM(P186:P189) - V186,0) -> 0 | K186: ПРТ Райпо | N186: 2021-09-30 | P186: 5680 | Q186: 2021-10-14 | U186: 29.12.2021 | V186: 8650 | X186: 45
N187: 2021-10-29 | P187: 6300 | Q187: 2021-11-22 | X187: 45
N188: 2021-11-30 | P188: 5850 | Q188: 2021-12-14 | X188: 45
N189: 2021-12-28 | P189: 4720 | Q189: 2021-12-29 | X189: 45
A190: 37 | D190: 92500000000000000244 | E190: 33 | F190: 2021-09-01 | G190: питание 6 руб | H190: 117000 | I190: =IF(X190 = 46, H190 + SUM(S190:S193) - SUM(T190:T193) - SUM(P190:P193) - V190,0) -> 0 | K190: ПРТ Райпо | N190: 2021-09-30 | P190: 29298 | Q190: 2021-10-14 | U190: 29.12.2021 | V190: 9660 | X190: 46
N191: 2021-10-29 | P191: 28986 | Q191: 2021-11-22 | X191: 46
N192: 2021-11-30 | P192: 23982 | Q192: 2021-12-14 | X192: 46
N193: 2021-12-28 | P193: 25074 | Q193: 2021-12-29 | X193: 46
A194: 38 | D194: 92500000000000000244 | E194: 58 | F194: 2021-09-10 | G194: пропитка чердачн.перекрытий | H194: 86663.2 | I194: =IF(X194 = 47, H194 + SUM(S194:S194) - SUM(T194:T194) - SUM(P194:P194) - V194,0) -> 0 | K194: ООО ГлавПожСнаб" | N194: 2021-09-17 | P194: 86663.2 | Q194: 2021-09-24 | X194: 47
A195: 39 | D195: 92500000000000000244 | E195: 230 | F195: 2021-09-21 | G195: мебель для музея аренда | H195: 26900 | I195: =IF(X195 = 48, H195 + SUM(S195:S195) - SUM(T195:T195) - SUM(P195:P195) - V195,0) -> 0 | K195: тит мебель | N195: 2021-10-29 | P195: 26900 | Q195: 2011-11-08 | X195: 48
A196: 40 | D196: 92500000000000000244 | E196: 35 | F196: 2021-09-28 | G196: сканер | H196: 223255 | I196: =IF(X196 = 49, H196 + SUM(S196:S196) - SUM(T196:T196) - SUM(P196:P196) - V196,0) -> 0 | K196: ООО ""Компьютерный бизнес сервис СиБиЭс" | N196: 2021-09-28 | P196: 223255 | Q196: 2021-09-30 | X196: 49
A197: 41 | D197: 92500000000000000244 | E197: 113 | F197: 2021-09-24 | G197: стенды | H197: 65342 | I197: =IF(X197 = 50, H197 + SUM(S197:S197) - SUM(T197:T197) - SUM(P197:P197) - V197,0) -> 0 | K197: ИП Костерев | N197: 2021-09-24 | P197: 65342 | Q197: 2021-09-29 | X197: 50
A198: 42 | D198: 92500000000000000244 | E198: 40 | F198: 2021-10-28 | G198: Краска | H198: 129750 | I198: =IF(X198 = 51, H198 + SUM(S198:S198) - SUM(T198:T198) - SUM(P198:P198) - V198,0) -> 0 | K198: ИП Быстров | N198: 2021-10-28 | P198: 129750 | Q198: 2021-11-08 | X198: 51
A199: 43 | D199: 92500000000000000244 | E199: 46 | F199: 2011-12-07 | G199: установка систем экстренного оповещения | H199: 520000 | I199: =IF(X199 = 52, H199 + SUM(S199:S199) - SUM(T199:T199) - SUM(P199:P199) - V199,0) -> 0 | K199: ИП Войтенко | N199: 2021-12-22 | P199: 520000 | Q199: 2021-12-22 | X199: 52
A200: 44 | D200: 92500000000000000244 | E200: 47 | F200: 2021-12-07 | G200: ПИтание 1-4 класс декабрь | H200: 463130.06 | I200: =IF(X200 = 53, H200 + SUM(S200:S205) - SUM(T200:T205) - SUM(P200:P205) - V200,0) -> 5.820766091e-11 | J200: =P200+P201+P202+P203+P204+P205 -> 463130.06 | K200: ООО ПРТ Райпо | N200: 2021-12-10 | P200: 171576.65 | Q200: 2021-12-21 | X200: 53
N201: 2021-12-10 | P201: 10961.93 | Q201: 2021-12-21 | X201: 53
N202: 2021-12-24 | P202: 220169.42 | Q202: 2021-12-29 | X202: 53
N203: 2021-12-24 | P203: 14053.66 | Q203: 2021-12-29 | X203: 53
N204: 2021-12-28 | P204: 43586.24 | Q204: 2021-12-29 | X204: 53
... 12 more rows

Sheet Ед.поставщик за искл. п.4,5 ч.1
E2: Сумма заключенных контрактов | G2: =SUM(G9:G9999) -> 4022529.06 | L2: Сумма средств выплаченных по контрактам | N2: =SUM(N9:N9999) -> 3523139.51 | Q2: Общая сумма расторжений по контрактам/договорам | T2: =SUM(T9:T9999) -> 159457.33
A6: № п/п | B6: № в реестре контрактов | C6: Код бюджетной классификации | D6: № контракта | E6: Дата заключения | F6: Предмет договора/контракта | G6: Цена контракта (Объем финансового обеспечения подлежащий к оплате в текущем фин. году) | H6: Остаток по контракту | I6: ИНН поставщика (подрядчика, исполнителя) | J6: Поставщик (подрядчик, исполнитель) | K6: Сроки поставки товара (оказания услуги, выполнения работы), согласно контракта; Предоставление документов на оплату Закзчику | L6: Фактическая дата поставки товара (оказания услуги, выполнения работы) и (или) предоставление документов на оплату и подписание документов о приемке | M6: Сроки оплаты согласно договора/контракта | N6: Сумма согласно документа об исполнении контракта заказчиком | O6: Фактическая дата оплаты | P6: Изменение контракта (№, дата) | Q6: Изменение контракта (увеличение цены контракта в рублях) | R6: Изменение контракта (уменьшение цены контракта в рублях) | S6: Расторжение контракта (№, дата) | T6: Сумма расторжения | U6: Примечание
A7: 1 | B7: 2 | C7: 3 | D7: 4 | E7: 5 | F7: 6 | G7: 7 | H7: 8 | I7: 9 | J7: 10 | K7: 11 | L7: 12 | M7: 13 | N7: 14 | O7: 15 | P7: 16 | Q7: 17 | R7: 18 | S7: 19 | T7: 20 | U7: 21
A8: 1 | B8: 3235301125818100175 | C8: 9020104 5210000190244 | D8: 123 | E8: 2019-12-24 | F8: Поставка электрической энергии | G8: 100000 | H8: 90000 | I8: 2308091759 | J8: АО "НЭСК" | K8: Поставка электрической энергии осуществляется постоянно, в течение срока действия контракта | L8: 2019-12-02 | M8: До 10 числа расчетного месяца в размере 30%, до 25 числа расчетного месяца 40%, до 18 числа месяца, следующего за расчетным | N8: 10000 | O8: 2019-01-24 | U8: Пример
A9: 1 | B9: 32353014442 20 000018 | C9: 92500000000000000247 | D9: 219 | E9: 2020-12-21 | F9: Поставка электроэнергии | G9: 1274699.4 | H9: =IF(V9 = 1, G9 + SUM(Q9:Q43) - SUM(R9:R43) - SUM(N9:N43) - T9,0) -> 340932.22 | I9: 2308091759 | J9: АО НЭСК | K9: Поставка эосуществляется постоянно, в течение срока действия контракта | M9: До 10 числа расчетного месяца в размере 30%, до 25 числа расчетного месяца 40%, до 18 числа месяца, следующего за расчетным | N9: 23936.59 | O9: 2021-01-20 | V9: 1
L10: 2021-01-01 | N10: 40088.55 | O10: 2021-01-20 | V10: 1
L11: 2021-01-02 | N11: 30061.46 | O11: 2021-02-04 | V11: 1
L12: 2021-01-31 | N12: 1649.65 | O12: 2021-02-16 | V12: 1
L13: 2021-02-02 | N13: 26265.91 | O13: 2021-02-16 | V13: 1
L14: 2021-03-01 | N14: 19714.44 | O14: 2021-03-04 | V14: 1
L15: 2021-03-02 | N15: 39943.57 | O15: 2021-03-17 | V15: 1
L16: 2021-02-28 | N16: 43541.74 | O16: 2021-03-17 | V16: 1
L17: 2021-04-01 | N17: 29957.68 | O17: 2021-04-01 | V17: 1
L18: 2021-03-31 | N18: 16129.05 | O18: 2021-04-16 | V18: 1
L19: 2021-04-02 | N19: 30316.81 | O19: 2021-04-16 | V19: 1
L20: 2021-05-01 | N20: 22745.04 | O20: 2021-05-14 | V20: 1
L21: 2021-04-30 | N21: 31536.15 | O21: 2021-05-21 | V21: 1
L22: 2021-06-01 | N22: 27544.19 | O22: 2021-06-02 | V22: 1
L23: 2021-06-02 | N23: 20777.24 | O23: 2021-06-18 | V23: 1
L24: 2021-05-31 | N24: 29178.9 | O24: 2021-06-18 | V24: 1
L25: 2021-07-01 | N25: 15573.34 | O25: 2021-07-08 | V25: 1
L26: 2021-08-01 | N26: 9184.69 | O26: 2021-08-05 | V26: 1
L27: 2021-07-31 | N27: 29191.06 | O27: 2021-09-01 | V27: 1
L28: 2021-09-01 | N28: 18759.47 | O28: 2021-09-02 | V28: 1
L29: 2021-08-31 | N29: 46811.41 | O29: 2021-09-21 | V29: 1
L30: 2021-09-02 | N30: 22396.2 | O30: 2021-09-21 | V30: 1
L31: 2021-10-01 | N31: 16805.59 | O31: 2021-10-01 | V31: 1
L32: 2021-09-30 | N32: 66805.18 | O32: 2021-10-22 | V32: 1
L33: 2021-10-02 | N33: 43175.46 | O33: 2021-10-22 | V33: 1
L34: 2021-11-01 | N34: 32387.15 | O34: 2021-11-09 | V34: 1
L35: 2021-11-01 | N35: 32387.15 | O35: 2021-11-09 | V35: 1
L36: 2021-10-31 | N36: 23119.3 | O36: 2021-11-22 | V36: 1
L37: 2021-11-02 | N37: 33223.04 | O37: 2021-11-22 | V37: 1
L38: 2021-12-01 | N38: 24933.32 | O38: 2021-12-01 | V38: 1
L39: 2021-11-30 | N39: 42413.91 | O39: 2021-12-20 | V39: 1
L40: 2021-11-30 | N40: 43213.94 | O40: 2021-12-20 | V40: 1
V41: 1
V42: 1
V43: 1
A44: 2 | B44: 32353014442 20 000019 | C44: 92500000000000000247 | D44: 91 | E44: 2020-12-22 | F44: Поставка теплоэнергии и горяч.воды | G44: 1694072.06 | H44: =IF(V44 = 2, G44 + SUM(Q44:Q69) - SUM(R44:R69) - SUM(N44:N69) - T44,0) -> -9.094947018e-12 | I44: 2312054894 | J44: АО АТЭК | K44: Поставка эосуществляется постоянно, в течение срока действия контракта | L44: 2021-01-31 | M44: не позднее 30 дней с момента подписания док.на опл. | N44: 41557.07 | O44: 2021-02-20 | T44: 4422.24 | V44: 2
L45: 2021-01-31 | N45: 200000 | O45: 2021-03-16 | V45: 2
L46: 2021-01-31 | N46: 46140.23 | O46: 2021-04-01 | V46: 2
L47: 2021-01-31 | N47: 3859.77 | O47: 02.0.2021 | V47: 2
L48: 2021-01-31 | N48: 100000 | O48: 2021-04-21 | V48: 2
L49: 2021-02-28 | N49: 41622.4 | O49: 2021-04-26 | V49: 2
L50: 2021-02-28 | N50: 294229.45 | O50: 2021-04-29 | V50: 2
L51: 2021-02-28 | N51: 5770.55 | O51: 2021-04-29 | V51: 2
L52: 2021-03-31 | N52: 5066.39 | O52: 2021-04-29 | V52: 2
L53: 2021-03-31 | N53: 274478 | O53: 2021-04-29 | V53: 2
L54: 2021-04-30 | N54: 5611.55 | O54: 2021-06-18 | V54: 2
L55: 2021-04-30 | N55: 190994.88 | O55: 2021-06-18 | V55: 2
L56: 2021-05-31 | N56: 2792.72 | O56: 2021-06-18 | V56: 2
L57: 2021-06-30 | N57: 58.99 | O57: 2021-07-23 | V57: 2
L58: 2021-09-30 | N58: 2934.11 | O58: 2021-10-15 | V58: 2
L59: 2021-10-06 | N59: 868.65 | O59: 2021-10-15 | V59: 2
L60: 2021-11-10 | N60: 978.59 | O60: 2021-11-22 | V60: 2
L61: 2021-11-22 | N61: 8260.49 | O61: 2021-11-22 | V61: 2
L62: 2021-11-22 | N62: 33041.98 | O62: 2021-11-22 | V62: 2
L63: 2021-11-22 | N63: 3045.33 | O63: 2021-11-22 | V63: 2
L64: 22.122021 | N64: 199999.92 | O64: 2021-12-22 | V64: 2
L65: 2021-11-30 | N65: 225100.4 | O65: 2021-12-14 | V65: 2
L66: 2021-11-30 | N66: 3238.35 | O66: 2021-12-14 | V66: 2
V67: 2
V68: 2
V69: 2
A70: 3 | B70: 32353014442 20 000017 | C70: 92500000000000000247 | D70: 1 | E70: 2020-12-22 | F70: Поставка водоснабжения и водоотведения | G70: 250676.07 | H70: =IF(V70 = 3, G70 + SUM(Q70:Q81) - SUM(R70:R81) - SUM(N70:N81) - T70,0) -> 2.910383046e-11 | I70: 2353246210 | J70: ООО"Коммунальник " | K70: Поставка эосуществляется постоянно, в течение срока действия контракта | L70: 2021-01-20 | M70: не позднее 30 дней с момента подписания док.на опл. | N70: 8765.84 | O70: 2021-02-04 | S70: 1 от 27.12.2011 | T70: 155035.09 | V70: 3
L71: 2021-02-20 | N71: 8914.78 | O71: 2021-03-04 | V71: 3
L72: 2021-03-19 | N72: 13878.64 | O72: 2021-06-18 | V72: 3
L73: 2021-04-20 | N73: 11536.62 | O73: 2021-06-18 | V73: 3
L74: 2021-05-31 | N74: 6747.42 | O74: 2021-06-18 | V74: 3
L75: 2021-06-30 | N75: 5922.22 | O75: 2021-09-21 | V75: 3
L76: 2021-07-31 | N76: 3135.61 | O76: 2021-09-21 | V76: 3
L77: 2021-08-31 | N77: 1772.32 | O77: 2021-09-21 | V77: 3
L78: 2021-09-30 | N78: 9199.16 | O78: 2021-10-18 | V78: 3
L79: 2021-11-22 | N79: 9705.54 | O79: 2021-10-31 | V79: 3
L80: 2021-12-21 | N80: 6593.55 | O80: 2011-12-27 | V80: 3
L81: 30.11.201 | N81: 9469.28 | O81: 2021-12-14 | V81: 3
A82: 4 | C82: 92500000000000000244 | D82: 32 | E82: 2021-04-09 | F82: учебники | G82: 761511.53 | H82: =IF(V82 = 4, G82 + SUM(Q82:Q84) - SUM(R82:R84) - SUM(N82:N84) - T82,0) -> -1000 | I82: 7715995942 | J82: АО "Издательство Просвещение" | K82: до 10 августа 2021 | L82: 2021-05-15 | M82: Не позднее 30 календарных дней с момента подписания Заказчиком и Подрядчиком акта приема-сдачи и предоставленного Подрядчиком документа на оплату | N82: 718417.15 | O82: 2021-07-23 | V82: 4
L83: 2021-06-20 | N83: 43922.23 | O83: 2021-07-23 | V83: 4
L84: 2021-08-05 | N84: 172.15 | O84: 2021-09-15 | V84: 4
A85: 5 | C85: 92500000000000000244 | D85: 8 | E85: 2021-04-09 | F85: учебники | G85: 41570 | H85: =IF(V85 = 5, G85 + SUM(Q85:Q85) - SUM(R85:R85) - SUM(N85:N85) - T85,0) -> 0 | I85: 2310047193 | J85: ООО "ОИПЦ "Перспективы образования" | K85: до 10 августа 2021 | L85: 2021-06-15 | M85: Не позднее 30 календарных дней с момента подписания Заказчиком и Подрядчиком акта приема-сдачи и предоставленного Подрядчиком документа на оплату | N85: 41570 | O85: 2021-07-23 | V85: 5
V86: 6

Sheet Состоявшиеся аукционы
E2: Сумма начальных (максимальных) цен контрактов | G2: =SUM(G9:G9999) -> 2009834.73 | O2: Сумма заключенных контрактов | Q2: =SUM(Q9:Q9999) -> 1799547.99 | T2: Сумма средств выплаченных по контрактам | V2: =SUM(V9:V9999) -> 1667596.62 | Y2: Общая сумма расторжений по контрактам/договорам | AB2: =SUM(AB9:AB9999) -> 0
A6: № п/п | B6: Наименование муниципальной программы, национального или регионального проекта | C6: ИКЗ (Идентификационный код закупки) | D6: Код бюджетной классификации | E6: № извещения | F6: Объект закупки | G6: Н(М)ЦК | H6: Экономия | I6: Количество поданных заявок | J6: Количество заявок признанные несоответствующими | K6: СМП и СОНО | L6: № в реестре контрактов | M6: № контракта | N6: Дата заключения | O6: ИНН поставщика (подрядчика, исполнителя) | P6: Поставщик (подрядчик, исполнитель) | Q6: Цена контракта | R6: Остаток по контракту | S6: Сроки поставки товара (оказания услуги, выполнения работы), согласно контракта | T6: Фактическая дата поставки товара (оказания услуги, выполнения работы) и (или) предоставление документов на оплату и подписание документов о приемке | U6: Сроки оплаты согласно контракта | V6: Сумма согласно документа об исполнении контракта заказчиком | W6: Фактическая дата оплаты | X6: Изменение контракта (№, дата) | Y6: Изменение контракта (увеличение цены контракта в рублях) | Z6: Изменение контракта (уменьшение цены контракта в рублях) | AA6: Расторжение контракта (№, дата) | AB6: Сумма расторжения | AC6: Примечание
A7: 1 | B7: 2 | C7: 3 | D7: 4 | E7: 5 | F7: 6 | G7: 7 | H7: 8 | I7: 9 | J7: 10 | K7: 11 | L7: 12 | M7: 13 | N7: 14 | O7: 15 | P7: 16 | Q7: 17 | R7: 18 | S7: 19 | T7: 20 | U7: 21 | V7: 22 | W7: 23 | X7: 24 | Y7: 25 | Z7: 26 | AA7: 27 | AB7: 28 | AC7: 29
A8: 1 | C8: 193235301125823530100103000010000244 | D8: 902 0113 1210310010 244 | E8: 0818300019919000194 | F8: Поставка картриджа и тонер-картриджей | G8: 15500.01 | H8: =G8-Q8 -> 6725 | I8: 6 | J8: 0 | K8: Нет | L8: 3235301125819000079 | M8: Ф.2019.412162 | N8: 2019-07-09 | O8: 3443923035 | P8: ООО "АНАЛИТИК ЦЕНТР" | Q8: 8775.01 | R8: =Q8-V8 -> 0 | S8: В течение 20 рабочих дней со дня заключения сторонами муниципального контракта | T8: 2019-07-31 | U8: Не позднее 30 календарных дней с момента подписания Заказчиком документа о приемке выполненных работ и представленного Подрядчиком документа на оплату | V8: 8775.01 | W8: 2019-08-19 | AC8: Пример
A9: 1 | C9: 20 32353014442235301001 0026 001 8010 244 | E9: 0818300019920000293 | F9: Охрана январь-июнь 2021 года | G9: 351864 | H9: =IF(AD9 = 1, G9 - Q9,0) -> 82688.04 | I9: 6 | K9: да | L9: 32353014442 20 000020 | M9: №0818300019920000293 | N9: 2020-12-29 | P9: ООО "ЧОО Легион" | Q9: 269175.96 | R9: =IF(AD9 = 1, Q9 + SUM(Y9:Y16) - SUM(Z9:Z16) - SUM(V9:V16) - AB9,0) -> 0 | S9: ежедневно | T9: 2021-01-31 | U9: Не позднее 15 рабочих дней с момента подписания Заказчиком документа о приемке выполненных работ и представленного Подрядчиком документа на оплату | V9: 46101.96 | W9: 2021-02-04 | AD9: 1
T10: 2021-02-28 | V10: 41640.48 | W10: 2021-03-04 | AD10: 1
T11: 2021-03-31 | V11: 46101.96 | W11: 2021-04-13 | AD11: 1
T12: 2021-04-30 | V12: 44614.8 | W12: 2021-05-18 | AD12: 1
T13: 2021-05-31 | V13: 46101.96 | W13: 2021-06-02 | AD13: 1
T14: 2021-06-30 | V14: 44614.8 | W14: 2021-07-08 | AD14: 1
AD15: 1
AD16: 1
A17: 2 | C17: 21 32353014442235301001 0011 001 5629 244 | D17: 92500000000000000244 | E17: 0818300019921000204 | F17: Оказание услуги по организации питания учащихся муниципальных бюджетных общеобразовательных учреждений средних общеобразовательных школ муниципального образования Тимашевский район. | G17: 1657970.73 | H17: =IF(AD17 = 2, G17 - Q17,0) -> 127598.7 | I17: 2 | K17: да | L17: 32353014442 21 000003 | M17: №0818300019921000204 | N17: 2021-08-30 | O17: 2353020735 | P17: ООО«Тимашевское предприятие розничной торговли райпо» | Q17: 1530372.03 | R17: =IF(AD17 = 2, Q17 + SUM(Y17:Y40) - SUM(Z17:Z40) - SUM(V17:V40) - AB17,0) -> 131951.37 | T17: 2021-09-30 | V17: 13657 | W17: 2021-10-14 | AD17: 2
T18: 2021-09-30 | V18: 29108 | W18: 2021-10-14 | AD18: 2
T19: 2021-09-30 | V19: 90235.3 | W19: 2021-10-14 | AD19: 2
T20: 2021-09-30 | V20: 5759.82 | W20: 2021-10-14 | AD20: 2
T21: 2021-09-24 | V21: 230712.58 | W21: 2021-10-14 | AD21: 2
T22: 2021-09-24 | V22: 14726.64 | W22: 2021-10-14 | AD22: 2
T23: 2021-09-24 | V23: 74423 | W23: 2021-10-14 | AD23: 2
T24: 2021-10-08 | V24: 134822.85 | W24: 2021-10-25 | AD24: 2
T25: 2021-10-08 | V25: 8605.89 | W25: 2021-10-25 | AD25: 2
T26: 2021-10-08 | V26: 43491 | W26: 2021-10-25 | AD26: 2
T27: 2021-09-10 | V27: 62719 | W27: 2021-09-28 | AD27: 2
T28: 2021-09-10 | V28: 194429.98 | W28: 2021-09-21 | AD28: 2
T29: 2021-09-10 | V29: 12410.68 | W29: 2021-09-21 | AD29: 2
T30: 2021-10-22 | V30: 222230.93 | W30: 2021-11-11 | AD30: 2
T31: 2021-10-22 | V31: 14185.25 | W31: 2021-11-11 | AD31: 2
T32: 2021-10-22 | V32: 71687 | W32: 2021-11-11 | AD32: 2
T33: 2021-10-29 | V33: 7477.99 | W33: 2021-11-11 | AD33: 2
T34: 2021-10-29 | V34: 117152.75 | W34: 2021-11-11 | AD34: 2
T35: 2021-10-29 | V35: 37791 | W35: 2021-11-16 | AD35: 2
T36: 2021-10-29 | V36: 12794 | W36: 2021-11-16 | AD36: 2
AD37: 2
AD38: 2
AD39: 2
AD40: 2
AD41: 3

Sheet Несостоявшиеся аукционы
E2: Сумма начальных (максимальных) цен контрактов | G2: =SUM(G9:G9999) -> 0 | O2: Сумма заключенных контрактов | Q2: =SUM(Q9:Q9999) -> 0 | T2: Сумма средств выплаченных по контрактам | V2: =SUM(V9:V9999) -> 0 | Y2: Общая сумма расторжений по контрактам/договорам | AB2: =SUM(AB9:AB9999) -> 0
A6: № п/п | B6: Наименование муниципальной программы, национального или регионального проекта | C6: ИКЗ (Идентификационный код закупки) | D6: Код бюджетной классификации | E6: № извещения | F6: Объект закупки | G6: Н(М)ЦК | H6: Экономия | I6: Количество поданных заявок | J6: Количество заявок признанные несоответствующими | K6: СМП и СОНО | L6: № в реестре контрактов | M6: № контракта | N6: Дата заключения | O6: ИНН поставщика (подрядчика, исполнителя) | P6: Поставщик (подрядчик, исполнитель) | Q6: Цена контракта (Объем финансового обеспечения подлежащий к оплате в текущем фин. году) | R6: Остаток по контракту | S6: Сроки поставки товара (оказания услуги, выполнения работы), согласно контракта | T6: Фактическая дата поставки товара (оказания услуги, выполнения работы) и (или) предоставление документов на оплату и подписание документов о приемке | U6: Сроки оплаты согласно контракта | V6: Сумма согласно документа об исполнении контракта заказчиком | W6: Фактическая дата оплаты | X6: Изменение контракта (№, дата) | Y6: Изменение контракта (увеличение цены контракта в рублях) | Z6: Изменение контракта (уменьшение цены контракта в рублях) | AA6: Расторжение контракта (№, дата) | AB6: Сумма расторжения | AC6: Примечание
A7: 1 | B7: 2 | C7: 3 | D7: 4 | E7: 5 | F7: 6 | G7: 7 | H7: 8 | I7: 9 | J7: 10 | K7: 11 | L7: 12 | M7: 13 | N7: 14 | O7: 15 | P7: 16 | Q7: 17 | R7: 18 | S7: 19 | T7: 20 | U7: 21 | V7: 22 | W7: 23 | X7: 24 | Y7: 25 | Z7: 26 | AA7: 27 | AB7: 28 | AC7: 29
A8: 1 | C8: 193235301125823530100103000010000244 | D8: 902 0113 1210310010 244 | E8: 0818300019919000194 | F8: Поставка картриджа и тонер-картриджей | G8: 15500.01 | H8: =G8-Q8 -> 6725 | I8: 6 | J8: 0 | K8: Нет | L8: 3235301125819000079 | M8: Ф.2019.412162 | N8: 2019-07-09 | O8: 3443923035 | P8: ООО "АНАЛИТИК ЦЕНТР" | Q8: 8775.01 | R8: =Q8-V8 -> 0 | S8: В течение 20 рабочих дней со дня заключения сторонами муниципального контракта | T8: 2019-07-31 | U8: Не позднее 30 календарных дней с момента подписания Заказчиком документа о приемке выполненных работ и представленного Подрядчиком документа на оплату | V8: 8775.01 | W8: 2019-08-19 | AC8: Пример
AD9: 2

Sheet Иные конкурентные закупки
E2: Сумма начальных (максимальных) цен контрактов | G2: =SUM(G9:G9999) -> 0 | O2: Сумма заключенных контрактов | Q2: =SUM(Q9:Q9999) -> 0 | T2: Сумма средств выплаченных по контрактам | V2: =SUM(V9:V9999) -> 0 | Y2: Общая сумма расторжений по контрактам/договорам | AB2: =SUM(AB9:AB9999) -> 0
A6: № п/п | B6: Наименование муниципальной программы, национального или регионального проекта | C6: ИКЗ (Идентификационный код закупки) | D6: Код бюджетной классификации | E6: № извещения | F6: Объект закупки | G6: Н(М)ЦК | H6: Экономия | I6: Количество поданных заявок | J6: Количество заявок признанные несоответствующими | K6: СМП и СОНО | L6: № в реестре контрактов | M6: № контракта | N6: Дата заключения | O6: ИНН поставщика (подрядчика, исполнителя) | P6: Поставщик (подрядчик, исполнитель) | Q6: Цена контракта | R6: Остаток по контракту | S6: Сроки поставки товара (оказания услуги, выполнения работы), согласно контракта | T6: Фактическая дата поставки товара (оказания услуги, выполнения работы) и (или) предоставление документов на оплату и подписание документов о приемке | U6: Сроки оплаты согласно контракта | V6: Сумма согласно документа об исполнении контракта заказчиком | W6: Фактическая дата оплаты | X6: Изменение контракта (№, дата) | Y6: Изменение контракта (увеличение цены контракта в рублях) | Z6: Изменение контракта (уменьшение цены контракта в рублях) | AA6: Расторжение контракта (№, дата) | AB6: Сумма расторжения | AC6: Примечание
A7: 1 | B7: 2 | C7: 3 | D7: 4 | E7: 5 | F7: 6 | G7: 7 | H7: 8 | I7: 9 | J7: 10 | K7: 11 | L7: 12 | M7: 13 | N7: 14 | O7: 15 | P7: 16 | Q7: 17 | R7: 18 | S7: 19 | T7: 20 | U7: 21 | V7: 22 | W7: 23 | X7: 24 | Y7: 25 | Z7: 26 | AA7: 27 | AB7: 28 | AC7: 29
A8: 1 | C8: 193235301125823530100103000010000244 | D8: 902 0113 1210310010 244 | E8: 0818300019919000194 | F8: Поставка картриджа и тонер-картриджей | G8: 15500.01 | H8: =G8-Q8 -> 6725 | I8: 6 | J8: 0 | K8: Нет | L8: 3235301125819000079 | M8: Ф.2019.412162 | N8: 2019-07-09 | O8: 3443923035 | P8: ООО "АНАЛИТИК ЦЕНТР" | Q8: 8775.01 | R8: =Q8-V8 -> 0 | S8: В течение 20 рабочих дней со дня заключения сторонами муниципального контракта | T8: 2019-07-31 | U8: Не позднее 30 календарных дней с момента подписания Заказчиком документа о приемке выполненных работ и представленного Подрядчиком документа на оплату | V8: 8775.01 | W8: 2019-08-19 | AC8: Пример
AD9: 2

Sheet Настройки (hidden)
A1: 123 | B1: 60 | C1: 9 | D1: Ед. поставщик п.4 ч.1 | F1: Index | G1: Index | H1: Index | I1: Index | J1: Index | K1: Index
A2: TekStrokaP4 | B2: TekNomerP4 | C2: NachStrokaP4 | F2: 61 | G2: 63 | H2: 5 | I2: 2 | J2: 0 | K2: 0
F3: Index+1 | G3: Index+1 | H3: Index+1 | I3: Index+1 | J3: Index+1 | K3: Index+1
A4: 215 | B4: 54 | C4: 9 | D4: Ед. поставщик п.5 ч.1 | F4: 62 | G4: 64 | H4: 6 | I4: 3 | J4: 0 | K4: 0
A5: TekStrokaP5 | B5: TekNomerP5 | C5: NachStrokaP5
A7: 85 | B7: 5 | C7: 9 | D7: Ед.поставщик за искл. п.4,5 ч.1
A8: TekStrokaSt93 | B8: TekNomerSt93 | C8: NachStrokaSt93
A10: 40 | B10: 2 | C10: 9 | D10: Состоявшиеся аукционы
A11: TekStrokaSEA | B11: TekNomerSEA | C11: NachStrokaSEA
A13: 8 | B13: 0 | C13: 9 | D13: Несостоявшиеся аукционы
A14: TekStrokaNEA | B14: TekNomerNEA | C14: NachStrokaNEA
A16: 8 | B16: 0 | C16: 9 | D16: Иные конкурентные закупки
A17: TekStrokaIKZ | B17: TekNomerIKZ | C17: NachStrokaIKZ
